Body Name,Body,Service division categorisation,Expense Type,Date paid,Transaction Reference,Net,Supplier Name,Redacted/Excluded
East Lindsey District Council,http://statistics.data.gov.uk/id/local-authority/32UC,Horncastle Pool Manager,Other agencies,02/08/12,IJ00012485,7130.9,COMPETITION LINE (UK) LTD, 
East Lindsey District Council,http://statistics.data.gov.uk/id/local-authority/32UC,Capital WIP,Works to Buildings (main Contractor),02/08/12,IJ00012600,4288.24,HARLITE INSTALLATIONS LTD, 
East Lindsey District Council,http://statistics.data.gov.uk/id/local-authority/32UC,Theatre Manager,Buildings Maintenance - Responsive,02/08/12,IJ00012455,3250.05,J MELTON LTD, 
East Lindsey District Council,http://statistics.data.gov.uk/id/local-authority/32UC,Capital WIP,Grants and Contributions to Outside Bodies- No Service Recei,02/08/12,IJ00012553,7496.96,SIBJON BUILDERS, 
East Lindsey District Council,http://statistics.data.gov.uk/id/local-authority/32UC,Service Development Manager,Materials and Consumables,02/08/12,IJ00012599,537.8,STOWLIN LTD, 
East Lindsey District Council,http://statistics.data.gov.uk/id/local-authority/32UC,Service Development Manager,Materials and Consumables,02/08/12,IJ00012599,268.9,STOWLIN LTD, 
East Lindsey District Council,http://statistics.data.gov.uk/id/local-authority/32UC,Enforcement Team Leader,Professional & Contractors Fees,02/08/12,IJ00012433,1080,WALKERS KENNELS, 
East Lindsey District Council,http://statistics.data.gov.uk/id/local-authority/32UC,Commercial Team Leader,Other Private Contractors,02/08/12,IJ00012518,1160.42,INTERNATIONAL ZOO VETERINARY GROUP, 
East Lindsey District Council,http://statistics.data.gov.uk/id/local-authority/32UC,Service Development Manager,Materials and Consumables,02/08/12,IJ00012639,1578.43,KENMOR BUILDING & CONSTRUCTION SERVICES, 
East Lindsey District Council,http://statistics.data.gov.uk/id/local-authority/32UC,Technical Services Team Leader,Professional & Contractors Fees,02/08/12,IJ00012639,94.5,KENMOR BUILDING & CONSTRUCTION SERVICES, 
East Lindsey District Council,http://statistics.data.gov.uk/id/local-authority/32UC,TL Property,Buildings Maintenance - Responsive,02/08/12,IJ00012639,390.6,KENMOR BUILDING & CONSTRUCTION SERVICES, 
East Lindsey District Council,http://statistics.data.gov.uk/id/local-authority/32UC,Service Development Manager,Buildings Maintenance - Responsive,02/08/12,IJ00012639,2302.68,KENMOR BUILDING & CONSTRUCTION SERVICES, 
East Lindsey District Council,http://statistics.data.gov.uk/id/local-authority/32UC,Service Development Manager,Buildings Maintenance - Responsive,02/08/12,IJ00012639,452.77,KENMOR BUILDING & CONSTRUCTION SERVICES, 
East Lindsey District Council,http://statistics.data.gov.uk/id/local-authority/32UC,TL Property,Buildings Maintenance - Responsive,02/08/12,IJ00012639,42,KENMOR BUILDING & CONSTRUCTION SERVICES, 
East Lindsey District Council,http://statistics.data.gov.uk/id/local-authority/32UC,Capital WIP,Works to Buildings (main Contractor),02/08/12,IJ00012639,114.56,KENMOR BUILDING & CONSTRUCTION SERVICES, 
East Lindsey District Council,http://statistics.data.gov.uk/id/local-authority/32UC,Democracy Manager,Grants and Contributions to Outside Bodies- No Service Recei,02/08/12,IJ00012565,500,BURGH LE MARSH TOWN COUNCIL, 
East Lindsey District Council,http://statistics.data.gov.uk/id/local-authority/32UC,Democracy Manager,Postages,02/08/12,IJ00012434,4493.42,ROYAL MAIL, 
East Lindsey District Council,http://statistics.data.gov.uk/id/local-authority/32UC,Enforcement Team Leader,Professional & Contractors Fees,02/08/12,IJ00012422,500,AXIS SURVEYS LTD, 
East Lindsey District Council,http://statistics.data.gov.uk/id/local-authority/32UC,Theatre Manager,Advertising - Events,02/08/12,IJ00012540,510,THE BUSINESS ORGANISATION LTD, 
East Lindsey District Council,http://statistics.data.gov.uk/id/local-authority/32UC,Area Working,Maintenance,02/08/12,IJ00012405,944.22,VENTURE FINANCE PLC, 
East Lindsey District Council,http://statistics.data.gov.uk/id/local-authority/32UC,Area Working,Maintenance,02/08/12,IJ00012406,1011.76,VENTURE FINANCE PLC, 
East Lindsey District Council,http://statistics.data.gov.uk/id/local-authority/32UC,Corporate Accounting,Other Miscellaneous Expenses,02/08/12,IJ00012420,523.5,SECURIT WORLD (TRADING DIV OF FILTRONA C&SP LIMITED), 
East Lindsey District Council,http://statistics.data.gov.uk/id/local-authority/32UC,Health Team Leader,Staff Training Expenses,02/08/12,IJ00012529,1683,THE WRIGHT FOUNDATION, 
East Lindsey District Council,http://statistics.data.gov.uk/id/local-authority/32UC,Policy & Project Manager,Grants and Contributions to Outside Bodies- No Service Recei,02/08/12,IJ00012580,560,FOXHALL CONSTRUCTION LTD, 
East Lindsey District Council,http://statistics.data.gov.uk/id/local-authority/32UC,Capital WIP,Grants and Contributions to Outside Bodies- No Service Recei,02/08/12,IJ00012558,4651.57,J SIVILL LTD, 
East Lindsey District Council,http://statistics.data.gov.uk/id/local-authority/32UC,Hsg Private Sector TL,Other Income,02/08/12,IJ00012558,-415.32,J SIVILL LTD, 
East Lindsey District Council,http://statistics.data.gov.uk/id/local-authority/32UC,Corporate Accounting,Computer Hardware Purchase,02/08/12,IJ00012526,650,CHRISTOPHER DONKIN, 
East Lindsey District Council,http://statistics.data.gov.uk/id/local-authority/32UC,Meridian Facility Manager,Other Miscellaneous Expenses,02/08/12,IJ00012487,1398.38,DEE BEE, 
East Lindsey District Council,http://statistics.data.gov.uk/id/local-authority/32UC,Embassy Pool Manager,Other Miscellaneous Expenses,02/08/12,IJ00012549,693.66,DEE BEE, 
East Lindsey District Council,http://statistics.data.gov.uk/id/local-authority/32UC,Collection Fund,Payment to NNDR Pool,02/08/12,IJ00012636,1489472,DEPARTMENT FOR COMMUNITIES AND LOCAL, 
East Lindsey District Council,http://statistics.data.gov.uk/id/local-authority/32UC,Corporate Accounting,Non Domestic Rates,02/08/12,IJ00012636,-585450,DEPARTMENT FOR COMMUNITIES AND LOCAL, 
East Lindsey District Council,http://statistics.data.gov.uk/id/local-authority/32UC,Theatre Manager,Performers and Entertainers Fees,02/08/12,IJ00012538,3517.54,ORIGINAL ENTERTAINMENT PROGRAMMING LTD, 
East Lindsey District Council,http://statistics.data.gov.uk/id/local-authority/32UC,Theatre Manager,Performers and Entertainers Fees,02/08/12,IJ00012538,-285.19,ORIGINAL ENTERTAINMENT PROGRAMMING LTD, 
East Lindsey District Council,http://statistics.data.gov.uk/id/local-authority/32UC,Theatre Manager,Performers and Entertainers Fees,02/08/12,IJ00012551,1079.94,ORIGINAL ENTERTAINMENT PROGRAMMING LTD, 
East Lindsey District Council,http://statistics.data.gov.uk/id/local-authority/32UC,Theatre Manager,Performers and Entertainers Fees,02/08/12,IJ00012551,-300,ORIGINAL ENTERTAINMENT PROGRAMMING LTD, 
East Lindsey District Council,http://statistics.data.gov.uk/id/local-authority/32UC,Theatre Manager,Performers and Entertainers Fees,02/08/12,IJ00012552,2607.97,ORIGINAL ENTERTAINMENT PROGRAMMING LTD, 
East Lindsey District Council,http://statistics.data.gov.uk/id/local-authority/32UC,Theatre Manager,Performers and Entertainers Fees,02/08/12,IJ00012552,-285.19,ORIGINAL ENTERTAINMENT PROGRAMMING LTD, 
East Lindsey District Council,http://statistics.data.gov.uk/id/local-authority/32UC,Waste Services Manager,Agency Staff,02/08/12,IJ00012536,5341.3,CLOSE INVOICE FINANCE LTD, 
East Lindsey District Council,http://statistics.data.gov.uk/id/local-authority/32UC,Horncastle Pool Manager,Purchase Of Goods For Resale,02/08/12,IJ00012442,602.61,SRS LEISURE, 
East Lindsey District Council,http://statistics.data.gov.uk/id/local-authority/32UC,Capital WIP,Grants and Contributions to Outside Bodies- No Service Recei,02/08/12,IJ00012561,4026.29,ANDREW BLADES BUILDING SERVICES LTD, 
East Lindsey District Council,http://statistics.data.gov.uk/id/local-authority/32UC,Hsg Private Sector TL,Other Income,02/08/12,IJ00012561,-359.49,ANDREW BLADES BUILDING SERVICES LTD, 
East Lindsey District Council,http://statistics.data.gov.uk/id/local-authority/32UC,Sports Centre Manager,Lincolnshire Legal Services,02/08/12,IJ00012641,1054,ADIE OREILLY LLP, 
East Lindsey District Council,http://statistics.data.gov.uk/id/local-authority/32UC,Theatre Manager,Performers and Entertainers Fees,02/08/12,IJ00012557,3000,PREMIER STAGE PRODUCTIONS LTD, 
East Lindsey District Council,http://statistics.data.gov.uk/id/local-authority/32UC,TL Partnerships & Grants,Grants and Contributions to Outside Bodies- No Service Recei,02/08/12,IJ00012423,6500,HUBBARDS HILLS TRUST LTD, 
East Lindsey District Council,http://statistics.data.gov.uk/id/local-authority/32UC,Service Development Manager,Buildings Maintenance - Responsive,02/08/12,IJ00012612,1217.74,H A T LIMITED, 
East Lindsey District Council,http://statistics.data.gov.uk/id/local-authority/32UC,Corporate Accounting,Compass Point Business Services,02/08/12,IJ00012623,426944.58,COMPASS POINT BUSINESS SERVICES, 
East Lindsey District Council,http://statistics.data.gov.uk/id/local-authority/32UC,Capital WIP,Grants and Contributions to Outside Bodies- No Service Recei,02/08/12,IJ00012556,5754.45,HARRIS BUILDING SERVICES, 
East Lindsey District Council,http://statistics.data.gov.uk/id/local-authority/32UC,Hsg Private Sector TL,Other Income,02/08/12,IJ00012556,-513.79,HARRIS BUILDING SERVICES, 
East Lindsey District Council,http://statistics.data.gov.uk/id/local-authority/32UC,Theatre Manager,Performers and Entertainers Fees,02/08/12,IJ00012546,5778.61,ARTISTES INTERNATIONAL MANAGEMENT LTD, 
East Lindsey District Council,http://statistics.data.gov.uk/id/local-authority/32UC,Theatre Manager,Performers and Entertainers Fees,02/08/12,IJ00012546,-288,ARTISTES INTERNATIONAL MANAGEMENT LTD, 
East Lindsey District Council,http://statistics.data.gov.uk/id/local-authority/32UC,Horncastle Pool Manager,Staff Training Expenses,02/08/12,IJ00012470,600,BABCOCK TRAINING LIMITED, 
East Lindsey District Council,http://statistics.data.gov.uk/id/local-authority/32UC,Capital WIP,Professional Fees,02/08/12,IJ00012610,820,FOCUS CONSULTANTS 2010 LLP, 
East Lindsey District Council,http://statistics.data.gov.uk/id/local-authority/32UC,Theatre Manager,Performers and Entertainers Fees,02/08/12,IJ00012543,4800,DEREK BLOCK CONCERT PROMOTIONS LTD, 
East Lindsey District Council,http://statistics.data.gov.uk/id/local-authority/32UC,TL Property,Buildings Maintenance - Programmed,02/08/12,IJ00012564,13842.24,J TOMLINSON LTD, 
East Lindsey District Council,http://statistics.data.gov.uk/id/local-authority/32UC,Service Development Manager,Materials and Consumables,02/08/12,IJ00012638,123.76,J TOMLINSON LTD, 
East Lindsey District Council,http://statistics.data.gov.uk/id/local-authority/32UC,Service Development Manager,Materials and Consumables,02/08/12,IJ00012638,1087.58,J TOMLINSON LTD, 
East Lindsey District Council,http://statistics.data.gov.uk/id/local-authority/32UC,Hsg Advice & Homelessness TL,Grants and Contributions to Outside Bodies- No Service Recei,02/08/12,IJ00012638,64.58,J TOMLINSON LTD, 
East Lindsey District Council,http://statistics.data.gov.uk/id/local-authority/32UC,Hsg Private Sector TL,Buildings Maintenance - Responsive,02/08/12,IJ00012468,982,THM CONSTRUCTION, 
East Lindsey District Council,http://statistics.data.gov.uk/id/local-authority/32UC,Service Development Manager,Maintenance,02/08/12,IJ00012582,1443.86,GREAT COATES MOTORS LTD, 
East Lindsey District Council,http://statistics.data.gov.uk/id/local-authority/32UC,Health Team Leader,Furniture and Equipment,02/08/12,IJ00012435,3066,GARDEN ORGANIC, 
East Lindsey District Council,http://statistics.data.gov.uk/id/local-authority/32UC,Service Development Manager,Water and Sewerage Charges,02/08/12,IJ00012570,2059.71,ANGLIAN WATER, 
East Lindsey District Council,http://statistics.data.gov.uk/id/local-authority/32UC,TL Partnerships & Grants,Grants and Contributions to Outside Bodies- No Service Recei,02/08/12,IJ00012424,2315.5,ALFORD CRAFT MARKET, 
East Lindsey District Council,http://statistics.data.gov.uk/id/local-authority/32UC,Hsg Advice & Homelessness TL,Bed and Breakfast Accommodation (Homelessness Service),02/08/12,IJ00012478,1291.67,D BURGESS, 
East Lindsey District Council,http://statistics.data.gov.uk/id/local-authority/32UC,Hsg Advice & Homelessness TL,Bed and Breakfast Accommodation (Homelessness Service),02/08/12,IJ00012479,1400,D BURGESS, 
East Lindsey District Council,http://statistics.data.gov.uk/id/local-authority/32UC,Business Development Manager,Professional & Contractors Fees,02/08/12,IJ00012613,57.5,KINGS ARMOURED SECURITY SERVICES LTD, 
East Lindsey District Council,http://statistics.data.gov.uk/id/local-authority/32UC,Horncastle Pool Manager,Professional & Contractors Fees,02/08/12,IJ00012613,92,KINGS ARMOURED SECURITY SERVICES LTD, 
East Lindsey District Council,http://statistics.data.gov.uk/id/local-authority/32UC,Embassy Pool Manager,Professional & Contractors Fees,02/08/12,IJ00012613,92,KINGS ARMOURED SECURITY SERVICES LTD, 
East Lindsey District Council,http://statistics.data.gov.uk/id/local-authority/32UC,Embassy Pool Manager,Professional & Contractors Fees,02/08/12,IJ00012613,39,KINGS ARMOURED SECURITY SERVICES LTD, 
East Lindsey District Council,http://statistics.data.gov.uk/id/local-authority/32UC,Theatre Manager,Professional & Contractors Fees,02/08/12,IJ00012613,57.5,KINGS ARMOURED SECURITY SERVICES LTD, 
East Lindsey District Council,http://statistics.data.gov.uk/id/local-authority/32UC,Sports Centre Manager,Professional & Contractors Fees,02/08/12,IJ00012613,92,KINGS ARMOURED SECURITY SERVICES LTD, 
East Lindsey District Council,http://statistics.data.gov.uk/id/local-authority/32UC,Meridian Facility Manager,Professional & Contractors Fees,02/08/12,IJ00012613,92,KINGS ARMOURED SECURITY SERVICES LTD, 
East Lindsey District Council,http://statistics.data.gov.uk/id/local-authority/32UC,Enforcement Team Leader,Professional & Contractors Fees,02/08/12,IJ00012613,285,KINGS ARMOURED SECURITY SERVICES LTD, 
East Lindsey District Council,http://statistics.data.gov.uk/id/local-authority/32UC,Corporate Accounting,Professional & Contractors Fees,02/08/12,IJ00012613,138,KINGS ARMOURED SECURITY SERVICES LTD, 
East Lindsey District Council,http://statistics.data.gov.uk/id/local-authority/32UC,Capital WIP,Grants and Contributions to Outside Bodies- No Service Recei,02/08/12,IJ00012554,4174.76,LUXURY SUNDECKS, 
East Lindsey District Council,http://statistics.data.gov.uk/id/local-authority/32UC,Hsg Private Sector TL,Other Income,02/08/12,IJ00012554,-372.75,LUXURY SUNDECKS, 
East Lindsey District Council,http://statistics.data.gov.uk/id/local-authority/32UC,Capital WIP,Grants and Contributions to Outside Bodies- No Service Recei,02/08/12,IJ00012563,1863,LUXURY SUNDECKS, 
East Lindsey District Council,http://statistics.data.gov.uk/id/local-authority/32UC,Policy & Project Manager,Other Miscellaneous Expenses,02/08/12,IJ00012407,678.8,EAST LINCS RURAL TRAINING, 
East Lindsey District Council,http://statistics.data.gov.uk/id/local-authority/32UC,Policy & Project Manager,Other Miscellaneous Expenses,02/08/12,IJ00012408,780,EAST LINCS RURAL TRAINING, 
East Lindsey District Council,http://statistics.data.gov.uk/id/local-authority/32UC,Embassy Pool Manager,Other Miscellaneous Expenses,02/08/12,IJ00012640,1282.1,PPL, 
East Lindsey District Council,http://statistics.data.gov.uk/id/local-authority/32UC,Horncastle Pool Manager,Other Miscellaneous Expenses,02/08/12,IJ00012640,711.7,PPL, 
East Lindsey District Council,http://statistics.data.gov.uk/id/local-authority/32UC,Meridian Facility Manager,Other Miscellaneous Expenses,02/08/12,IJ00012640,1540.68,PPL, 
East Lindsey District Council,http://statistics.data.gov.uk/id/local-authority/32UC,Meridian Facility Manager,Other Miscellaneous Expenses,02/08/12,IJ00012640,336.06,PPL, 
East Lindsey District Council,http://statistics.data.gov.uk/id/local-authority/32UC,Sports Centre Manager,Other Miscellaneous Expenses,02/08/12,IJ00012640,218.94,PPL, 
East Lindsey District Council,http://statistics.data.gov.uk/id/local-authority/32UC,Democracy Manager,External Printing and Design Costs,02/08/12,IJ00012419,9291.99,FCS LASER MAIL, 
East Lindsey District Council,http://statistics.data.gov.uk/id/local-authority/32UC,Enforcement Team Leader,Commercial Vehicle Lease,02/08/12,IJ00012585,3615.49,MAY GURNEY FLEET & PASSENGER SERVICES LTD, 
East Lindsey District Council,http://statistics.data.gov.uk/id/local-authority/32UC,Enforcement Team Leader,Commercial Vehicle Lease,02/08/12,IJ00012586,3615.49,MAY GURNEY FLEET & PASSENGER SERVICES LTD, 
East Lindsey District Council,http://statistics.data.gov.uk/id/local-authority/32UC,Enforcement Team Leader,Commercial Vehicle Lease,02/08/12,IJ00012587,3615.49,MAY GURNEY FLEET & PASSENGER SERVICES LTD, 
East Lindsey District Council,http://statistics.data.gov.uk/id/local-authority/32UC,Service Development Manager,Commercial Vehicle Lease,02/08/12,IJ00012588,5248.76,MAY GURNEY FLEET & PASSENGER SERVICES LTD, 
East Lindsey District Council,http://statistics.data.gov.uk/id/local-authority/32UC,Enforcement Team Leader,Commercial Vehicle Lease,02/08/12,IJ00012611,5248.76,MAY GURNEY FLEET & PASSENGER SERVICES LTD, 
East Lindsey District Council,http://statistics.data.gov.uk/id/local-authority/32UC,TL Partnerships & Grants,Other agencies,02/08/12,IJ00012438,4166.67,LINCOLNSHIRE CVS, 
East Lindsey District Council,http://statistics.data.gov.uk/id/local-authority/32UC,Democracy Manager,Grants and Contributions to Outside Bodies- No Service Recei,02/08/12,IJ00012441,700,SKEGNESS AND WINTHORPE PCC, 
East Lindsey District Council,http://statistics.data.gov.uk/id/local-authority/32UC,Policy & Project Manager,Grants and Contributions to Outside Bodies- No Service Recei,02/08/12,IJ00012469,9173.13,ALISCAFF LTD, 
East Lindsey District Council,http://statistics.data.gov.uk/id/local-authority/32UC,Theatre Manager,Performers and Entertainers Fees,02/08/12,IJ00012555,8741.67,CHAMBERS MANAGEMENT TOURING, 
East Lindsey District Council,http://statistics.data.gov.uk/id/local-authority/32UC,Theatre Manager,Performers and Entertainers Fees,02/08/12,IJ00012555,-9.6,CHAMBERS MANAGEMENT TOURING, 
East Lindsey District Council,http://statistics.data.gov.uk/id/local-authority/32UC,Waste Services Manager,Fuel & Oil,02/08/12,IJ00012481,27743.61,EMO OIL LIMITED, 
East Lindsey District Council,http://statistics.data.gov.uk/id/local-authority/32UC,Service Development Manager,Buildings Maintenance - Responsive,02/08/12,IJ00012604,1238.21,ROBERT HOWELL PLANT HIRE & CONSTRUCTION, 
East Lindsey District Council,http://statistics.data.gov.uk/id/local-authority/32UC,Area Working,Maintenance,02/08/12,IJ00012482,569.18,CHRIS SELLARS GROUNDCARE, 
East Lindsey District Council,http://statistics.data.gov.uk/id/local-authority/32UC,Commercial Team Leader,Other Private Contractors,02/08/12,IJ00012428,735.57,ARK VETS, 
East Lindsey District Council,http://statistics.data.gov.uk/id/local-authority/32UC,Democracy Manager,Grants and Contributions to Outside Bodies- No Service Recei,02/08/12,IJ00012522,800,SUTTON ON SEA CARNIVAL COMMITTEE, 
East Lindsey District Council,http://statistics.data.gov.uk/id/local-authority/32UC,Theatre Manager,Performers and Entertainers Fees,02/08/12,IJ00012525,8717.81,THE EMBASSY SCHOOL OF PERFORMING ARTS, 
East Lindsey District Council,http://statistics.data.gov.uk/id/local-authority/32UC,BALANCE  SHEET,Other Miscellaneous Expenses,02/08/12,IJ00012629,1356,REDACTED PERSONAL INFORMATION,REDACT
East Lindsey District Council,http://statistics.data.gov.uk/id/local-authority/32UC,Technical Services Team Leader,Buildings Maintenance - Programmed,07/08/12,IJ00013099,1500,FIREWORKS INTERNATIONAL, 
East Lindsey District Council,http://statistics.data.gov.uk/id/local-authority/32UC,Technical Services Team Leader,Buildings Maintenance - Programmed,07/08/12,IJ00013099,1200,FIREWORKS INTERNATIONAL, 
East Lindsey District Council,http://statistics.data.gov.uk/id/local-authority/32UC,Waste Services Manager,Tyres,09/08/12,IJ00012647,575.26,B A BUSH & SON LIMITED, 
East Lindsey District Council,http://statistics.data.gov.uk/id/local-authority/32UC,Improvement & Development Mngr,Professional & Contractors Fees,09/08/12,IJ00012774,510,SID DENNIS & SONS LTD, 
East Lindsey District Council,http://statistics.data.gov.uk/id/local-authority/32UC,Business Development Manager,Buildings Maintenance - Responsive,09/08/12,IJ00012719,206.32,HARLITE INSTALLATIONS LTD, 
East Lindsey District Council,http://statistics.data.gov.uk/id/local-authority/32UC,TL Property,Buildings Maintenance - Responsive,09/08/12,IJ00012719,18.02,HARLITE INSTALLATIONS LTD, 
East Lindsey District Council,http://statistics.data.gov.uk/id/local-authority/32UC,Technical Services Team Leader,Buildings Maintenance - Responsive,09/08/12,IJ00012719,1426.86,HARLITE INSTALLATIONS LTD, 
East Lindsey District Council,http://statistics.data.gov.uk/id/local-authority/32UC,Service Development Manager,Buildings Maintenance - Responsive,09/08/12,IJ00012719,42.73,HARLITE INSTALLATIONS LTD, 
East Lindsey District Council,http://statistics.data.gov.uk/id/local-authority/32UC,Technical Services Team Leader,Buildings Maintenance - Programmed,09/08/12,IJ00012719,440,HARLITE INSTALLATIONS LTD, 
East Lindsey District Council,http://statistics.data.gov.uk/id/local-authority/32UC,Theatre Manager,Buildings Maintenance - Responsive,09/08/12,IJ00012719,139.13,HARLITE INSTALLATIONS LTD, 
East Lindsey District Council,http://statistics.data.gov.uk/id/local-authority/32UC,Service Development Manager,Buildings Maintenance - Responsive,09/08/12,IJ00012719,233.97,HARLITE INSTALLATIONS LTD, 
East Lindsey District Council,http://statistics.data.gov.uk/id/local-authority/32UC,Enforcement Team Leader,Buildings Maintenance - Responsive,09/08/12,IJ00012719,36.04,HARLITE INSTALLATIONS LTD, 
East Lindsey District Council,http://statistics.data.gov.uk/id/local-authority/32UC,Business Development Manager,Buildings Maintenance - Responsive,09/08/12,IJ00012720,66.54,HARLITE INSTALLATIONS LTD, 
East Lindsey District Council,http://statistics.data.gov.uk/id/local-authority/32UC,Technical Services Team Leader,Buildings Maintenance - Responsive,09/08/12,IJ00012720,18.02,HARLITE INSTALLATIONS LTD, 
East Lindsey District Council,http://statistics.data.gov.uk/id/local-authority/32UC,Technical Services Team Leader,Buildings Maintenance - Responsive,09/08/12,IJ00012720,3395.14,HARLITE INSTALLATIONS LTD, 
East Lindsey District Council,http://statistics.data.gov.uk/id/local-authority/32UC,Technical Services Team Leader,Buildings Maintenance - Programmed,09/08/12,IJ00012720,440,HARLITE INSTALLATIONS LTD, 
East Lindsey District Council,http://statistics.data.gov.uk/id/local-authority/32UC,Cultural & Related Services,Other Miscellaneous Expenses,09/08/12,IJ00012720,520,HARLITE INSTALLATIONS LTD, 
East Lindsey District Council,http://statistics.data.gov.uk/id/local-authority/32UC,Theatre Manager,Buildings Maintenance - Responsive,09/08/12,IJ00012721,4437.88,J MELTON LTD, 
East Lindsey District Council,http://statistics.data.gov.uk/id/local-authority/32UC,Theatre Manager,Buildings Maintenance - Responsive,09/08/12,IJ00012721,1190.25,J MELTON LTD, 
East Lindsey District Council,http://statistics.data.gov.uk/id/local-authority/32UC,Theatre Manager,Postages,09/08/12,IJ00012675,600,POSTAGE BY PHONE - PITNEY BOWES PLC, 
East Lindsey District Council,http://statistics.data.gov.uk/id/local-authority/32UC,Theatre Manager,Postages,09/08/12,IJ00012675,9,POSTAGE BY PHONE - PITNEY BOWES PLC, 
East Lindsey District Council,http://statistics.data.gov.uk/id/local-authority/32UC,Service Development Manager,Materials and Consumables,09/08/12,IJ00012723,848.7,STOWLIN LTD, 
East Lindsey District Council,http://statistics.data.gov.uk/id/local-authority/32UC,Theatre Manager,Performers and Entertainers Fees,09/08/12,IJ00012831,3833.42,ALAN FIELD ASSOCIATES LIMITED, 
East Lindsey District Council,http://statistics.data.gov.uk/id/local-authority/32UC,Theatre Manager,Performers and Entertainers Fees,09/08/12,IJ00012831,-210,ALAN FIELD ASSOCIATES LIMITED, 
East Lindsey District Council,http://statistics.data.gov.uk/id/local-authority/32UC,Corporate Accounting,Postages,09/08/12,IJ00012747,505.83,ROYAL MAIL, 
East Lindsey District Council,http://statistics.data.gov.uk/id/local-authority/32UC,Corporate Accounting,Postages,09/08/12,IJ00012747,239.72,ROYAL MAIL, 
East Lindsey District Council,http://statistics.data.gov.uk/id/local-authority/32UC,Corporate Accounting,Postages,09/08/12,IJ00012747,601.55,ROYAL MAIL, 
East Lindsey District Council,http://statistics.data.gov.uk/id/local-authority/32UC,Corporate Accounting,Postages,09/08/12,IJ00012747,285.82,ROYAL MAIL, 
East Lindsey District Council,http://statistics.data.gov.uk/id/local-authority/32UC,Corporate Accounting,Postages,09/08/12,IJ00012747,36.34,ROYAL MAIL, 
East Lindsey District Council,http://statistics.data.gov.uk/id/local-authority/32UC,Corporate Accounting,Postages,09/08/12,IJ00012747,28.75,ROYAL MAIL, 
East Lindsey District Council,http://statistics.data.gov.uk/id/local-authority/32UC,Corporate Accounting,Postages,09/08/12,IJ00012747,100.77,ROYAL MAIL, 
East Lindsey District Council,http://statistics.data.gov.uk/id/local-authority/32UC,Debt Recovery TL,Postages,09/08/12,IJ00012748,2.14,ROYAL MAIL, 
East Lindsey District Council,http://statistics.data.gov.uk/id/local-authority/32UC,Corporate Accounting,Postages,09/08/12,IJ00012748,766.02,ROYAL MAIL, 
East Lindsey District Council,http://statistics.data.gov.uk/id/local-authority/32UC,Corporate Accounting,Postages,09/08/12,IJ00012748,261.26,ROYAL MAIL, 
East Lindsey District Council,http://statistics.data.gov.uk/id/local-authority/32UC,Corporate Accounting,Postages,09/08/12,IJ00012748,1042.64,ROYAL MAIL, 
East Lindsey District Council,http://statistics.data.gov.uk/id/local-authority/32UC,Corporate Accounting,Postages,09/08/12,IJ00012748,686.91,ROYAL MAIL, 
East Lindsey District Council,http://statistics.data.gov.uk/id/local-authority/32UC,Corporate Accounting,Postages,09/08/12,IJ00012748,92.2,ROYAL MAIL, 
East Lindsey District Council,http://statistics.data.gov.uk/id/local-authority/32UC,Corporate Accounting,Postages,09/08/12,IJ00012748,32.31,ROYAL MAIL, 
East Lindsey District Council,http://statistics.data.gov.uk/id/local-authority/32UC,Corporate Accounting,Postages,09/08/12,IJ00012748,368.69,ROYAL MAIL, 
East Lindsey District Council,http://statistics.data.gov.uk/id/local-authority/32UC,Horncastle Pool Manager,Purchase Of Goods For Resale,09/08/12,IJ00012880,568.56,ASA AWARDS CENTRE, 
East Lindsey District Council,http://statistics.data.gov.uk/id/local-authority/32UC,Waste Services Manager,Other agencies,09/08/12,IJ00012779,984.46,GLASS RECYCLING (UK) LTD, 
East Lindsey District Council,http://statistics.data.gov.uk/id/local-authority/32UC,Corporate Accounting,Insurance,09/08/12,IJ00012696,3214.88,THE RISK FACTOR LTD, 
East Lindsey District Council,http://statistics.data.gov.uk/id/local-authority/32UC,TL Property,Grants and Contributions to Outside Bodies- No Service Recei,09/08/12,IJ00012695,6001.5,LINCOLNSHIRE COUNTY COUNCIL, 
East Lindsey District Council,http://statistics.data.gov.uk/id/local-authority/32UC,TL Property,Grants and Contributions to Outside Bodies- No Service Recei,09/08/12,IJ00012695,13696.18,LINCOLNSHIRE COUNTY COUNCIL, 
East Lindsey District Council,http://statistics.data.gov.uk/id/local-authority/32UC,TL Property,Grants and Contributions to Outside Bodies- No Service Recei,09/08/12,IJ00012695,11046.09,LINCOLNSHIRE COUNTY COUNCIL, 
East Lindsey District Council,http://statistics.data.gov.uk/id/local-authority/32UC,TL IT - System Support,Computer Software Licence Costs,09/08/12,IJ00012789,553,CROWN COMPUTING LIMITED, 
East Lindsey District Council,http://statistics.data.gov.uk/id/local-authority/32UC,Democracy Manager,Grants and Contributions to Outside Bodies- No Service Recei,09/08/12,IJ00012692,500,NORTH SOMERCOTES VILLAGE HALL, 
East Lindsey District Council,http://statistics.data.gov.uk/id/local-authority/32UC,Embassy Pool Manager,Electricity,09/08/12,IJ00012707,2680.73,SOUTHERN ELECTRIC PLC, 
East Lindsey District Council,http://statistics.data.gov.uk/id/local-authority/32UC,Theatre Manager,Film and Entertainment Costs,09/08/12,IJ00012683,5829.32,THE PERFORMING RIGHT SOCIETY, 
East Lindsey District Council,http://statistics.data.gov.uk/id/local-authority/32UC,Hsg Bens Quality Assurance TL,Other Miscellaneous Expenses,09/08/12,IJ00012852,76.26,ALLPAY NET LTD, 
East Lindsey District Council,http://statistics.data.gov.uk/id/local-authority/32UC,Council Tax TL,Other Miscellaneous Expenses,09/08/12,IJ00012852,3351.78,ALLPAY NET LTD, 
East Lindsey District Council,http://statistics.data.gov.uk/id/local-authority/32UC,Corporate Accounting,Postages,09/08/12,IJ00012869,9000,NEOPOST LTD, 
East Lindsey District Council,http://statistics.data.gov.uk/id/local-authority/32UC,Theatre Manager,Performers and Entertainers Fees,09/08/12,IJ00012828,6345.3,HANDSHAKE LTD, 
East Lindsey District Council,http://statistics.data.gov.uk/id/local-authority/32UC,Theatre Manager,Performers and Entertainers Fees,09/08/12,IJ00012828,-318,HANDSHAKE LTD, 
East Lindsey District Council,http://statistics.data.gov.uk/id/local-authority/32UC,Business Development Manager,Professional & Contractors Fees,09/08/12,IJ00012680,5253.17,COASTFIELDS, 
East Lindsey District Council,http://statistics.data.gov.uk/id/local-authority/32UC,Business Development Manager,Professional & Contractors Fees,09/08/12,IJ00012682,5253.17,COASTFIELDS, 
East Lindsey District Council,http://statistics.data.gov.uk/id/local-authority/32UC,Service Development Manager,Buildings Maintenance - Responsive,09/08/12,IJ00012711,1416.5,D & D ENGINEERING (LINCS) LTD, 
East Lindsey District Council,http://statistics.data.gov.uk/id/local-authority/32UC,Sports Centre Manager,Cleaning Contract,09/08/12,IJ00012877,47.6,ESPO, 
East Lindsey District Council,http://statistics.data.gov.uk/id/local-authority/32UC,Service Development Manager,Materials and Consumables,09/08/12,IJ00012877,3020,ESPO, 
East Lindsey District Council,http://statistics.data.gov.uk/id/local-authority/32UC,TL Property,Stationery,09/08/12,IJ00012877,16.5,ESPO, 
East Lindsey District Council,http://statistics.data.gov.uk/id/local-authority/32UC,Sports Centre Manager,Furniture and Equipment,09/08/12,IJ00012877,40.21,ESPO, 
East Lindsey District Council,http://statistics.data.gov.uk/id/local-authority/32UC,Corporate Accounting,Other Miscellaneous Expenses,09/08/12,IJ00012855,16082.46,GE CORPORATE PAYMENT SERVICES, 
East Lindsey District Council,http://statistics.data.gov.uk/id/local-authority/32UC,Waste Services Manager,Agency Staff,09/08/12,IJ00012731,6025.11,CLOSE INVOICE FINANCE LTD, 
East Lindsey District Council,http://statistics.data.gov.uk/id/local-authority/32UC,Meridian Facility Manager,Purchase Of Goods For Resale,09/08/12,IJ00012663,629.26,SRS LEISURE, 
East Lindsey District Council,http://statistics.data.gov.uk/id/local-authority/32UC,Technical Services Team Leader,Electricity,09/08/12,IJ00012709,1995.94,E.ON ENERGY, 
East Lindsey District Council,http://statistics.data.gov.uk/id/local-authority/32UC,Enforcement Team Leader,Electricity,09/08/12,IJ00012709,6.06,E.ON ENERGY, 
East Lindsey District Council,http://statistics.data.gov.uk/id/local-authority/32UC,Enforcement Team Leader,Electricity,09/08/12,IJ00012709,21.16,E.ON ENERGY, 
East Lindsey District Council,http://statistics.data.gov.uk/id/local-authority/32UC,Enforcement Team Leader,Electricity,09/08/12,IJ00012709,7.94,E.ON ENERGY, 
East Lindsey District Council,http://statistics.data.gov.uk/id/local-authority/32UC,Enforcement Team Leader,Electricity,09/08/12,IJ00012709,16.02,E.ON ENERGY, 
East Lindsey District Council,http://statistics.data.gov.uk/id/local-authority/32UC,Enforcement Team Leader,Electricity,09/08/12,IJ00012709,26.32,E.ON ENERGY, 
East Lindsey District Council,http://statistics.data.gov.uk/id/local-authority/32UC,Enforcement Team Leader,Electricity,09/08/12,IJ00012709,19.38,E.ON ENERGY, 
East Lindsey District Council,http://statistics.data.gov.uk/id/local-authority/32UC,Enforcement Team Leader,Electricity,09/08/12,IJ00012709,13.14,E.ON ENERGY, 
East Lindsey District Council,http://statistics.data.gov.uk/id/local-authority/32UC,Service Development Manager,Electricity,09/08/12,IJ00012709,4.62,E.ON ENERGY, 
East Lindsey District Council,http://statistics.data.gov.uk/id/local-authority/32UC,Capital WIP,Works to Buildings (main Contractor),09/08/12,IJ00012764,2610,PELL PLANT HIRE LTD, 
East Lindsey District Council,http://statistics.data.gov.uk/id/local-authority/32UC,Capital WIP,Works to Buildings (main Contractor),09/08/12,IJ00012765,4410,PELL PLANT HIRE LTD, 
East Lindsey District Council,http://statistics.data.gov.uk/id/local-authority/32UC,Capital WIP,Works to Buildings (main Contractor),09/08/12,IJ00012767,1665,PELL PLANT HIRE LTD, 
East Lindsey District Council,http://statistics.data.gov.uk/id/local-authority/32UC,Theatre Manager,Performers and Entertainers Fees,09/08/12,IJ00012829,2562.09,PREMIER STAGE PRODUCTIONS LTD, 
East Lindsey District Council,http://statistics.data.gov.uk/id/local-authority/32UC,Theatre Manager,Performers and Entertainers Fees,09/08/12,IJ00012829,-440,PREMIER STAGE PRODUCTIONS LTD, 
East Lindsey District Council,http://statistics.data.gov.uk/id/local-authority/32UC,TL IT - System Support,Computer Software Licence Costs,09/08/12,IJ00012780,1725,EXCITECH TECHNOLOGY FOR DESIGN, 
East Lindsey District Council,http://statistics.data.gov.uk/id/local-authority/32UC,Development Control,Banking Charges,09/08/12,IJ00012856,4.15,CAPITA BUSINESS SERVICES LTD, 
East Lindsey District Council,http://statistics.data.gov.uk/id/local-authority/32UC,Enforcement Team Leader,Banking Charges,09/08/12,IJ00012856,90.58,CAPITA BUSINESS SERVICES LTD, 
East Lindsey District Council,http://statistics.data.gov.uk/id/local-authority/32UC,Hsg Bens Quality Assurance TL,Banking Charges,09/08/12,IJ00012856,38.64,CAPITA BUSINESS SERVICES LTD, 
East Lindsey District Council,http://statistics.data.gov.uk/id/local-authority/32UC,Debt Recovery TL,Banking Charges,09/08/12,IJ00012856,55.39,CAPITA BUSINESS SERVICES LTD, 
East Lindsey District Council,http://statistics.data.gov.uk/id/local-authority/32UC,Council Tax TL,Banking Charges,09/08/12,IJ00012856,1900.26,CAPITA BUSINESS SERVICES LTD, 
East Lindsey District Council,http://statistics.data.gov.uk/id/local-authority/32UC,Corporate Accounting,Banking Charges,09/08/12,IJ00012856,593.26,CAPITA BUSINESS SERVICES LTD, 
East Lindsey District Council,http://statistics.data.gov.uk/id/local-authority/32UC,Debt Recovery TL,Banking Charges,09/08/12,IJ00012856,41.46,CAPITA BUSINESS SERVICES LTD, 
East Lindsey District Council,http://statistics.data.gov.uk/id/local-authority/32UC,TL Partnerships & Grants,Grants and Contributions to Outside Bodies- No Service Recei,09/08/12,IJ00012834,2239.17,NEW YORK LECTURE HALL MANAGERS, 
East Lindsey District Council,http://statistics.data.gov.uk/id/local-authority/32UC,Waste Services Manager,Agency Staff,09/08/12,IJ00012775,544,LINCS MOTORHOMES LTD, 
East Lindsey District Council,http://statistics.data.gov.uk/id/local-authority/32UC,Waste Services Manager,Agency Staff,09/08/12,IJ00012776,1539,LINCS MOTORHOMES LTD, 
East Lindsey District Council,http://statistics.data.gov.uk/id/local-authority/32UC,Development Control,Agency Staff,09/08/12,IJ00012659,6319.26,LGS LIMITED, 
East Lindsey District Council,http://statistics.data.gov.uk/id/local-authority/32UC,Customer Services Manager,Payments to Bodies in Respect of Income Collected,09/08/12,IJ00012735,752,THE COTTAGE MUSEUM WOODHALL SPA, 
East Lindsey District Council,http://statistics.data.gov.uk/id/local-authority/32UC,Meridian Facility Manager,Professional & Contractors Fees,09/08/12,IJ00012652,935,DONNA MAHER, 
East Lindsey District Council,http://statistics.data.gov.uk/id/local-authority/32UC,Customer Services Manager,Payments to Bodies in Respect of Income Collected,09/08/12,IJ00012736,1791.62,NATIONAL EXPRESS CREDIT CONTROL DEPT, 
East Lindsey District Council,http://statistics.data.gov.uk/id/local-authority/32UC,Customer Services Manager,Payments to Bodies in Respect of Income Collected,09/08/12,IJ00012736,1693.67,NATIONAL EXPRESS CREDIT CONTROL DEPT, 
East Lindsey District Council,http://statistics.data.gov.uk/id/local-authority/32UC,Customer Services Manager,Payments to Bodies in Respect of Income Collected,09/08/12,IJ00012736,749.06,NATIONAL EXPRESS CREDIT CONTROL DEPT, 
East Lindsey District Council,http://statistics.data.gov.uk/id/local-authority/32UC,Customer Services Manager,Payments to Bodies in Respect of Income Collected,09/08/12,IJ00012736,188.4,NATIONAL EXPRESS CREDIT CONTROL DEPT, 
East Lindsey District Council,http://statistics.data.gov.uk/id/local-authority/32UC,Theatre Manager,Performers and Entertainers Fees,09/08/12,IJ00012669,4490.58,QDOS ENTERTAINMENT (PRODUCTIONS) LTD, 
East Lindsey District Council,http://statistics.data.gov.uk/id/local-authority/32UC,Theatre Manager,Performers and Entertainers Fees,09/08/12,IJ00012830,2285.59,MARK ANDREWS PRODUCTIONS, 
East Lindsey District Council,http://statistics.data.gov.uk/id/local-authority/32UC,Theatre Manager,Performers and Entertainers Fees,09/08/12,IJ00012830,-90,MARK ANDREWS PRODUCTIONS, 
East Lindsey District Council,http://statistics.data.gov.uk/id/local-authority/32UC,Business Development Manager,Clothing Uniforms And Laundry,09/08/12,IJ00012664,1270.9,PHS LAUNDRYSERV, 
East Lindsey District Council,http://statistics.data.gov.uk/id/local-authority/32UC,Capital WIP,Grants and Contributions to Outside Bodies- No Service Recei,09/08/12,IJ00012793,4541.33,HARRIS BUILDING SERVICES, 
East Lindsey District Council,http://statistics.data.gov.uk/id/local-authority/32UC,Hsg Private Sector TL,Other Income,09/08/12,IJ00012793,-405.48,HARRIS BUILDING SERVICES, 
East Lindsey District Council,http://statistics.data.gov.uk/id/local-authority/32UC,TL Partnerships & Grants,Grants and Contributions to Outside Bodies- No Service Recei,09/08/12,IJ00012833,2000,TEAM PARISH OF LOUTH, 
East Lindsey District Council,http://statistics.data.gov.uk/id/local-authority/32UC,TL IT - Infrastructure,Buildings Maintenance - Programmed,09/08/12,IJ00012800,795,MHS ALARM SERVICES LTD, 
East Lindsey District Council,http://statistics.data.gov.uk/id/local-authority/32UC,TL IT - Infrastructure,Computer Software Licence Costs,09/08/12,IJ00012791,3650,RMS MANAGED IT SECURITY LTD, 
East Lindsey District Council,http://statistics.data.gov.uk/id/local-authority/32UC,Democracy Manager,Grants and Contributions to Outside Bodies- No Service Recei,09/08/12,IJ00012691,750,NORTH SOMERCOTES PARISH COUNCIL, 
East Lindsey District Council,http://statistics.data.gov.uk/id/local-authority/32UC,Democracy Manager,Grants and Contributions to Outside Bodies- No Service Recei,09/08/12,IJ00012693,750,SOUTH SOMERCOTES PARISH COUNCIL, 
East Lindsey District Council,http://statistics.data.gov.uk/id/local-authority/32UC,TL IT - System Support,Computer Software Licence Costs,09/08/12,IJ00012786,2407.71,CIVICA UK LTD, 
East Lindsey District Council,http://statistics.data.gov.uk/id/local-authority/32UC,Service Development Manager,Buildings Maintenance - Programmed,09/08/12,IJ00012717,2216.22,FESTIVELITE (DISTRIBUTION) LIMITED, 
East Lindsey District Council,http://statistics.data.gov.uk/id/local-authority/32UC,TL IT - Infrastructure,Computer Software Purchase,09/08/12,IJ00012782,1328.88,ANS GROUP PLC, 
East Lindsey District Council,http://statistics.data.gov.uk/id/local-authority/32UC,Theatre Manager,Performers and Entertainers Fees,09/08/12,IJ00012824,746.68,THE COMEDY TEA HOUSE, 
East Lindsey District Council,http://statistics.data.gov.uk/id/local-authority/32UC,Hsg Private Sector TL,Computer Hardware Purchase,09/08/12,IJ00012848,3867,SAFE & SOUND SECURITY SYSTEMS LINKS LTD, 
East Lindsey District Council,http://statistics.data.gov.uk/id/local-authority/32UC,Service Development Manager,Water and Sewerage Charges,09/08/12,IJ00012705,1687.22,ANGLIAN WATER, 
East Lindsey District Council,http://statistics.data.gov.uk/id/local-authority/32UC,Service Development Manager,Grounds Maintenance Contract (External),09/08/12,IJ00012777,39984.93,VEOLIA ES (UK) LTD, 
East Lindsey District Council,http://statistics.data.gov.uk/id/local-authority/32UC,Business Development Officer,Advertising - Events,09/08/12,IJ00012701,1399,APSE, 
East Lindsey District Council,http://statistics.data.gov.uk/id/local-authority/32UC,Theatre Manager,Performers and Entertainers Fees,09/08/12,IJ00012668,4710.9,BRIAN SHAW CONCERTS, 
East Lindsey District Council,http://statistics.data.gov.uk/id/local-authority/32UC,TL IT - System Support,Commercial Vehicle Lease,09/08/12,IJ00012797,3025.32,VISILINK LIMITED, 
East Lindsey District Council,http://statistics.data.gov.uk/id/local-authority/32UC,Capital WIP,Grants and Contributions to Outside Bodies- No Service Recei,09/08/12,IJ00012792,932.07,CARILLION ENERGY SERVICES LIMITED, 
East Lindsey District Council,http://statistics.data.gov.uk/id/local-authority/32UC,Area Working,Furniture and Equipment,09/08/12,IJ00012655,297.15,PROBRUSH TA NORTHERN MUNICIPAL SPARES LTD, 
East Lindsey District Council,http://statistics.data.gov.uk/id/local-authority/32UC,Area Working,Furniture and Equipment,09/08/12,IJ00012655,297.3,PROBRUSH TA NORTHERN MUNICIPAL SPARES LTD, 
East Lindsey District Council,http://statistics.data.gov.uk/id/local-authority/32UC,Technical Services Team Leader,Commercial Vehicle Lease,09/08/12,IJ00012832,308.65,MAY GURNEY FLEET & PASSENGER SERVICES LTD, 
East Lindsey District Council,http://statistics.data.gov.uk/id/local-authority/32UC,Waste Services Manager,Commercial Vehicle Lease,09/08/12,IJ00012832,1455.63,MAY GURNEY FLEET & PASSENGER SERVICES LTD, 
East Lindsey District Council,http://statistics.data.gov.uk/id/local-authority/32UC,Waste Services Manager,Commercial Vehicle Lease,09/08/12,IJ00012832,237.53,MAY GURNEY FLEET & PASSENGER SERVICES LTD, 
East Lindsey District Council,http://statistics.data.gov.uk/id/local-authority/32UC,Theatre Manager,Commercial Vehicle Lease,09/08/12,IJ00012832,376.97,MAY GURNEY FLEET & PASSENGER SERVICES LTD, 
East Lindsey District Council,http://statistics.data.gov.uk/id/local-authority/32UC,Policy & Project Manager,Other Miscellaneous Expenses,09/08/12,IJ00012722,2850,RED DOG FILM CIC, 
East Lindsey District Council,http://statistics.data.gov.uk/id/local-authority/32UC,Planning & Housing Policy Manager,Other Miscellaneous Expenses,09/08/12,IJ00012769,7070,NATHANIEL LICHFIELD & PARTNERS, 
East Lindsey District Council,http://statistics.data.gov.uk/id/local-authority/32UC,Planning & Housing Policy Manager,Other Miscellaneous Expenses,09/08/12,IJ00012770,2270,NATHANIEL LICHFIELD & PARTNERS, 
East Lindsey District Council,http://statistics.data.gov.uk/id/local-authority/32UC,Health Team Leader,Staff Training Expenses,09/08/12,IJ00012818,533,THE GOLF HOTEL, 
East Lindsey District Council,http://statistics.data.gov.uk/id/local-authority/32UC,Sports Development,Materials and Consumables,09/08/12,IJ00012813,1275,KCFX LIMITED, 
East Lindsey District Council,http://statistics.data.gov.uk/id/local-authority/32UC,Cultural & Related Services,Other Miscellaneous Expenses,09/08/12,IJ00012697,550,BLOCKFREE SERVICES LTD, 
East Lindsey District Council,http://statistics.data.gov.uk/id/local-authority/32UC,Democracy Manager,Grants and Contributions to Outside Bodies- No Service Recei,09/08/12,IJ00012817,500,1ST BURGH GUIDES, 
East Lindsey District Council,http://statistics.data.gov.uk/id/local-authority/32UC,Hsg Advice & Homelessness TL,Grants and Contributions to Outside Bodies- No Service Recei,09/08/12,IJ00012862,666.67,REDACTED PERSONAL INFORMATION,REDACT
East Lindsey District Council,http://statistics.data.gov.uk/id/local-authority/32UC,Business Development Manager,Professional & Contractors Fees,16/08/12,IJ00013045,2467.54,SID DENNIS & SONS LTD, 
East Lindsey District Council,http://statistics.data.gov.uk/id/local-authority/32UC,Capital WIP,Works to Buildings (Sub Contractors),16/08/12,IJ00013011,1208.3,J MELTON LTD, 
East Lindsey District Council,http://statistics.data.gov.uk/id/local-authority/32UC,Horncastle Pool Manager,Materials and Consumables,16/08/12,IJ00012798,517,STOWLIN LTD, 
East Lindsey District Council,http://statistics.data.gov.uk/id/local-authority/32UC,Embassy Pool Manager,Materials and Consumables,16/08/12,IJ00013054,512.27,STOWLIN LTD, 
East Lindsey District Council,http://statistics.data.gov.uk/id/local-authority/32UC,Collection Fund,Precept - Lincolnshire Police,16/08/12,IJ00013129,893833.25,LOCAL POLICE AUTHORITY FUND ACCOUNT, 
East Lindsey District Council,http://statistics.data.gov.uk/id/local-authority/32UC,Meridian Facility Manager,Buildings Maintenance - Programmed,16/08/12,IJ00013051,1297.65,ABACUS LIGHTING LIMITED, 
East Lindsey District Council,http://statistics.data.gov.uk/id/local-authority/32UC,Business Development Manager,Film and Entertainment Costs,16/08/12,IJ00012926,1000,LINCS FM PLC, 
East Lindsey District Council,http://statistics.data.gov.uk/id/local-authority/32UC,Capital WIP,Grants and Contributions to Outside Bodies- No Service Recei,16/08/12,IJ00012972,6660.28,COTTS BUILDERS AND CONTRACTORS, 
East Lindsey District Council,http://statistics.data.gov.uk/id/local-authority/32UC,Capital WIP,Works to Buildings (Sub Contractors),16/08/12,IJ00013052,4095.13,KENMOR BUILDING & CONSTRUCTION SERVICES, 
East Lindsey District Council,http://statistics.data.gov.uk/id/local-authority/32UC,Capital WIP,Grants and Contributions to Outside Bodies- No Service Recei,16/08/12,IJ00012973,4667.3,M & M GRANTHAM, 
East Lindsey District Council,http://statistics.data.gov.uk/id/local-authority/32UC,Hsg Private Sector TL,Other Income,16/08/12,IJ00012973,-416.72,M & M GRANTHAM, 
East Lindsey District Council,http://statistics.data.gov.uk/id/local-authority/32UC,Policy & Project Manager,Postages,16/08/12,IJ00012921,837.58,ROYAL MAIL, 
East Lindsey District Council,http://statistics.data.gov.uk/id/local-authority/32UC,Theatre Manager,Postages,16/08/12,IJ00012959,634.11,ROYAL MAIL, 
East Lindsey District Council,http://statistics.data.gov.uk/id/local-authority/32UC,Environment Team Leader,"Books, Magazines and Other Publications",16/08/12,IJ00012976,20792.67,LINCOLNSHIRE COUNTY COUNCIL, 
East Lindsey District Council,http://statistics.data.gov.uk/id/local-authority/32UC,Housing Support TL,Grants and Contributions- Where a Service is Received,16/08/12,IJ00013060,20000,LINCOLNSHIRE COUNTY COUNCIL, 
East Lindsey District Council,http://statistics.data.gov.uk/id/local-authority/32UC,Collection Fund,Precept- Lincolnshire County Council,16/08/12,IJ00013131,5110516,LINCOLNSHIRE COUNTY COUNCIL, 
East Lindsey District Council,http://statistics.data.gov.uk/id/local-authority/32UC,Technical Services Team Leader,Buildings Maintenance - Programmed,16/08/12,IJ00013083,4305.13,SEYMOUR & CASTLE LTD, 
East Lindsey District Council,http://statistics.data.gov.uk/id/local-authority/32UC,TL Property,Buildings Maintenance - Programmed,16/08/12,IJ00013088,976.63,SEYMOUR & CASTLE LTD, 
East Lindsey District Council,http://statistics.data.gov.uk/id/local-authority/32UC,Policy & Project Manager,Buildings Maintenance - Programmed,16/08/12,IJ00013090,1541.06,SEYMOUR & CASTLE LTD, 
East Lindsey District Council,http://statistics.data.gov.uk/id/local-authority/32UC,Theatre Manager,Buildings Maintenance - Responsive,16/08/12,IJ00013094,598.64,SEYMOUR & CASTLE LTD, 
East Lindsey District Council,http://statistics.data.gov.uk/id/local-authority/32UC,Horncastle Pool Manager,Buildings Maintenance - Programmed,16/08/12,IJ00013095,1421.86,SEYMOUR & CASTLE LTD, 
East Lindsey District Council,http://statistics.data.gov.uk/id/local-authority/32UC,Meridian Facility Manager,Gas,16/08/12,IJ00013032,6376.65,SOUTHERN ELECTRIC PLC, 
East Lindsey District Council,http://statistics.data.gov.uk/id/local-authority/32UC,Theatre Manager,Performers and Entertainers Fees,16/08/12,IJ00012952,2060.04,FULL HOUSE PRODUCTIONS, 
East Lindsey District Council,http://statistics.data.gov.uk/id/local-authority/32UC,Theatre Manager,Performers and Entertainers Fees,16/08/12,IJ00012952,-150,FULL HOUSE PRODUCTIONS, 
East Lindsey District Council,http://statistics.data.gov.uk/id/local-authority/32UC,Hsg Advice & Homelessness TL,Bed and Breakfast Accommodation (Homelessness Service),16/08/12,IJ00012899,500,JEFF DENE GUEST HOUSE, 
East Lindsey District Council,http://statistics.data.gov.uk/id/local-authority/32UC,Policy & Project Manager,Agency Staff,16/08/12,IJ00013100,584.33,WORKFORCE UNLIMITED, 
East Lindsey District Council,http://statistics.data.gov.uk/id/local-authority/32UC,Capital WIP,Grants and Contributions to Outside Bodies- No Service Recei,16/08/12,IJ00013124,4857.73,KES BUILDING MAINTENANCE LTD, 
East Lindsey District Council,http://statistics.data.gov.uk/id/local-authority/32UC,Hsg Private Sector TL,Other Income,16/08/12,IJ00013124,-433.73,KES BUILDING MAINTENANCE LTD, 
East Lindsey District Council,http://statistics.data.gov.uk/id/local-authority/32UC,Council Tax TL,Professional & Contractors Fees,16/08/12,IJ00012919,511.13,JACOBS, 
East Lindsey District Council,http://statistics.data.gov.uk/id/local-authority/32UC,BALANCE  SHEET,Payroll Sacrifice Nursery Voucher,16/08/12,IJ00013046,2780,SODEXHO, 
East Lindsey District Council,http://statistics.data.gov.uk/id/local-authority/32UC,Capital WIP,Works to Buildings (main Contractor),16/08/12,IJ00013112,1000,AJET DRAIN SERVICES, 
East Lindsey District Council,http://statistics.data.gov.uk/id/local-authority/32UC,Capital WIP,Works to Buildings (main Contractor),16/08/12,IJ00013113,1570,AJET DRAIN SERVICES, 
East Lindsey District Council,http://statistics.data.gov.uk/id/local-authority/32UC,Technical Services Team Leader,Buildings Maintenance - Programmed,16/08/12,IJ00013104,2397.33,D & D ENGINEERING (LINCS) LTD, 
East Lindsey District Council,http://statistics.data.gov.uk/id/local-authority/32UC,Commercial Team Leader,Stationery,16/08/12,IJ00012897,37,ESPO, 
East Lindsey District Council,http://statistics.data.gov.uk/id/local-authority/32UC,Area Working,Materials and Consumables,16/08/12,IJ00012897,1093.92,ESPO, 
East Lindsey District Council,http://statistics.data.gov.uk/id/local-authority/32UC,Area Working,Materials and Consumables,16/08/12,IJ00012897,325,ESPO, 
East Lindsey District Council,http://statistics.data.gov.uk/id/local-authority/32UC,Area Working,Furniture and Equipment,16/08/12,IJ00012897,7.58,ESPO, 
East Lindsey District Council,http://statistics.data.gov.uk/id/local-authority/32UC,Hsg Advice & Homelessness TL,Electricity,16/08/12,IJ00013096,593.52,EDF ENERGY 1 LIMITED, 
East Lindsey District Council,http://statistics.data.gov.uk/id/local-authority/32UC,Hsg Advice & Homelessness TL,Gas,16/08/12,IJ00013096,940.2,EDF ENERGY 1 LIMITED, 
East Lindsey District Council,http://statistics.data.gov.uk/id/local-authority/32UC,Capital WIP,Grants and Contributions to Outside Bodies- No Service Recei,16/08/12,IJ00012963,1344,OBAM STAIRLIFTS, 
East Lindsey District Council,http://statistics.data.gov.uk/id/local-authority/32UC,Hsg Private Sector TL,Other Income,16/08/12,IJ00012963,-120,OBAM STAIRLIFTS, 
East Lindsey District Council,http://statistics.data.gov.uk/id/local-authority/32UC,Waste Services Manager,Agency Staff,16/08/12,IJ00012932,5802.36,CLOSE INVOICE FINANCE LTD, 
East Lindsey District Council,http://statistics.data.gov.uk/id/local-authority/32UC,Hsg Advice & Homelessness TL,Bed and Breakfast Accommodation (Homelessness Service),16/08/12,IJ00012983,500,BEESTON LODGE HOTEL, 
East Lindsey District Council,http://statistics.data.gov.uk/id/local-authority/32UC,Hsg Advice & Homelessness TL,Bed and Breakfast Accommodation (Homelessness Service),16/08/12,IJ00012984,900,BEESTON LODGE HOTEL, 
East Lindsey District Council,http://statistics.data.gov.uk/id/local-authority/32UC,Hsg Advice & Homelessness TL,Bed and Breakfast Accommodation (Homelessness Service),16/08/12,IJ00012985,630,BEESTON LODGE HOTEL, 
East Lindsey District Council,http://statistics.data.gov.uk/id/local-authority/32UC,Capital WIP,Grants and Contributions to Outside Bodies- No Service Recei,16/08/12,IJ00012962,4387.69,HUMBERSTONE BUILDING MAINTENANCE, 
East Lindsey District Council,http://statistics.data.gov.uk/id/local-authority/32UC,Hsg Private Sector TL,Other Income,16/08/12,IJ00012962,-391.76,HUMBERSTONE BUILDING MAINTENANCE, 
East Lindsey District Council,http://statistics.data.gov.uk/id/local-authority/32UC,Meridian Facility Manager,Furniture and Equipment,16/08/12,IJ00013064,775.85,VERE BROS (CONTRACTORS) LTD, 
East Lindsey District Council,http://statistics.data.gov.uk/id/local-authority/32UC,Policy & Project Manager,Professional & Contractors Fees,16/08/12,IJ00012929,846.62,FLORAL DECOR, 
East Lindsey District Council,http://statistics.data.gov.uk/id/local-authority/32UC,Theatre Manager,Performers and Entertainers Fees,16/08/12,IJ00012954,3536.63,LEE JAMES ASSOCIATES LIMITED, 
East Lindsey District Council,http://statistics.data.gov.uk/id/local-authority/32UC,Theatre Manager,Performers and Entertainers Fees,16/08/12,IJ00012954,-210,LEE JAMES ASSOCIATES LIMITED, 
East Lindsey District Council,http://statistics.data.gov.uk/id/local-authority/32UC,Capital WIP,Grants and Contributions to Outside Bodies- No Service Recei,16/08/12,IJ00012964,1265.6,DOLPHIN MOBILITY EAST MIDLANDS, 
East Lindsey District Council,http://statistics.data.gov.uk/id/local-authority/32UC,Hsg Private Sector TL,Other Income,16/08/12,IJ00012964,-113,DOLPHIN MOBILITY EAST MIDLANDS, 
East Lindsey District Council,http://statistics.data.gov.uk/id/local-authority/32UC,Capital WIP,Grants and Contributions to Outside Bodies- No Service Recei,16/08/12,IJ00013123,1360.8,DOLPHIN MOBILITY EAST MIDLANDS, 
East Lindsey District Council,http://statistics.data.gov.uk/id/local-authority/32UC,Hsg Private Sector TL,Other Income,16/08/12,IJ00013123,-121.5,DOLPHIN MOBILITY EAST MIDLANDS, 
East Lindsey District Council,http://statistics.data.gov.uk/id/local-authority/32UC,Capital WIP,Grants and Contributions to Outside Bodies- No Service Recei,16/08/12,IJ00012965,4797.81,RODDEN & COOPER, 
East Lindsey District Council,http://statistics.data.gov.uk/id/local-authority/32UC,Hsg Private Sector TL,Other Income,16/08/12,IJ00012965,-428.38,RODDEN & COOPER, 
East Lindsey District Council,http://statistics.data.gov.uk/id/local-authority/32UC,Waste Services Manager,Agency Staff,16/08/12,IJ00012910,1539,LINCS MOTORHOMES LTD, 
East Lindsey District Council,http://statistics.data.gov.uk/id/local-authority/32UC,Waste Services Manager,Agency Staff,16/08/12,IJ00012911,544,LINCS MOTORHOMES LTD, 
East Lindsey District Council,http://statistics.data.gov.uk/id/local-authority/32UC,TL Partnerships & Grants,Grants and Contributions to Outside Bodies- No Service Recei,16/08/12,IJ00013108,3000,HUBBARDS HILLS TRUST LTD, 
East Lindsey District Council,http://statistics.data.gov.uk/id/local-authority/32UC,Improvement & Development Mngr,Agency Staff,16/08/12,IJ00013009,3384.23,THE WORKSHOP (WISBECH) LIMITED, 
East Lindsey District Council,http://statistics.data.gov.uk/id/local-authority/32UC,Meridian Facility Manager,Premises and Room Hire,16/08/12,IJ00012891,643.62,AQUA VITA CAFE, 
East Lindsey District Council,http://statistics.data.gov.uk/id/local-authority/32UC,Meridian Facility Manager,Premises and Room Hire,16/08/12,IJ00012906,682.47,AQUA VITA CAFE, 
East Lindsey District Council,http://statistics.data.gov.uk/id/local-authority/32UC,Cultural & Related Services,Other Miscellaneous Expenses,16/08/12,IJ00013062,22184,MAGNETIC EVENTS LTD, 
East Lindsey District Council,http://statistics.data.gov.uk/id/local-authority/32UC,Commercial Team Leader,Other Private Contractors,16/08/12,IJ00012885,1141.3,THE CO-OPERATIVE FUNERALCARE, 
East Lindsey District Council,http://statistics.data.gov.uk/id/local-authority/32UC,Housing Support TL,Other Miscellaneous Expenses,16/08/12,IJ00013101,937.5,TOTEMIC LTD, 
East Lindsey District Council,http://statistics.data.gov.uk/id/local-authority/32UC,Theatre Manager,Performers and Entertainers Fees,16/08/12,IJ00012958,4732.42,QDOS ENTERTAINMENT (PRODUCTIONS) LTD, 
East Lindsey District Council,http://statistics.data.gov.uk/id/local-authority/32UC,Theatre Manager,Performers and Entertainers Fees,16/08/12,IJ00012955,3513.4,DEREK BLOCK CONCERT PROMOTIONS LTD, 
East Lindsey District Council,http://statistics.data.gov.uk/id/local-authority/32UC,Theatre Manager,Performers and Entertainers Fees,16/08/12,IJ00012955,-175,DEREK BLOCK CONCERT PROMOTIONS LTD, 
East Lindsey District Council,http://statistics.data.gov.uk/id/local-authority/32UC,Theatre Manager,Postages,16/08/12,IJ00012955,383.2,DEREK BLOCK CONCERT PROMOTIONS LTD, 
East Lindsey District Council,http://statistics.data.gov.uk/id/local-authority/32UC,Theatre Manager,Performers and Entertainers Fees,16/08/12,IJ00013115,6000,DEREK BLOCK CONCERT PROMOTIONS LTD, 
East Lindsey District Council,http://statistics.data.gov.uk/id/local-authority/32UC,Business Development Manager,Buildings Maintenance - Responsive,16/08/12,IJ00013015,118.16,J TOMLINSON LTD, 
East Lindsey District Council,http://statistics.data.gov.uk/id/local-authority/32UC,Business Development Manager,Buildings Maintenance - Responsive,16/08/12,IJ00013015,35.11,J TOMLINSON LTD, 
East Lindsey District Council,http://statistics.data.gov.uk/id/local-authority/32UC,Business Development Manager,Buildings Maintenance - Responsive,16/08/12,IJ00013015,35.11,J TOMLINSON LTD, 
East Lindsey District Council,http://statistics.data.gov.uk/id/local-authority/32UC,TL Property,Buildings Maintenance - Responsive,16/08/12,IJ00013015,94.51,J TOMLINSON LTD, 
East Lindsey District Council,http://statistics.data.gov.uk/id/local-authority/32UC,Service Development Manager,Buildings Maintenance - Responsive,16/08/12,IJ00013015,322.59,J TOMLINSON LTD, 
East Lindsey District Council,http://statistics.data.gov.uk/id/local-authority/32UC,Service Development Manager,Buildings Maintenance - Responsive,16/08/12,IJ00013015,31.38,J TOMLINSON LTD, 
East Lindsey District Council,http://statistics.data.gov.uk/id/local-authority/32UC,Service Development Manager,Buildings Maintenance - Responsive,16/08/12,IJ00013015,90.55,J TOMLINSON LTD, 
East Lindsey District Council,http://statistics.data.gov.uk/id/local-authority/32UC,Service Development Manager,Buildings Maintenance - Responsive,16/08/12,IJ00013015,32.35,J TOMLINSON LTD, 
East Lindsey District Council,http://statistics.data.gov.uk/id/local-authority/32UC,Service Development Manager,Buildings Maintenance - Responsive,16/08/12,IJ00013015,53.27,J TOMLINSON LTD, 
East Lindsey District Council,http://statistics.data.gov.uk/id/local-authority/32UC,Horncastle Pool Manager,Buildings Maintenance - Responsive,16/08/12,IJ00013015,41.84,J TOMLINSON LTD, 
East Lindsey District Council,http://statistics.data.gov.uk/id/local-authority/32UC,Embassy Pool Manager,Buildings Maintenance - Responsive,16/08/12,IJ00013015,104.6,J TOMLINSON LTD, 
East Lindsey District Council,http://statistics.data.gov.uk/id/local-authority/32UC,Embassy Pool Manager,Buildings Maintenance - Responsive,16/08/12,IJ00013015,26.15,J TOMLINSON LTD, 
East Lindsey District Council,http://statistics.data.gov.uk/id/local-authority/32UC,Meridian Facility Manager,Buildings Maintenance - Responsive,16/08/12,IJ00013015,197.15,J TOMLINSON LTD, 
East Lindsey District Council,http://statistics.data.gov.uk/id/local-authority/32UC,Meridian Facility Manager,Buildings Maintenance - Responsive,16/08/12,IJ00013015,20,J TOMLINSON LTD, 
East Lindsey District Council,http://statistics.data.gov.uk/id/local-authority/32UC,Meridian Facility Manager,Buildings Maintenance - Responsive,16/08/12,IJ00013015,20,J TOMLINSON LTD, 
East Lindsey District Council,http://statistics.data.gov.uk/id/local-authority/32UC,Sports Centre Manager,Buildings Maintenance - Responsive,16/08/12,IJ00013015,121.08,J TOMLINSON LTD, 
East Lindsey District Council,http://statistics.data.gov.uk/id/local-authority/32UC,TL Property,Buildings Maintenance - Responsive,16/08/12,IJ00013015,481.99,J TOMLINSON LTD, 
East Lindsey District Council,http://statistics.data.gov.uk/id/local-authority/32UC,Service Development Manager,Buildings Maintenance - Responsive,16/08/12,IJ00013015,27.04,J TOMLINSON LTD, 
East Lindsey District Council,http://statistics.data.gov.uk/id/local-authority/32UC,Service Development Manager,Buildings Maintenance - Responsive,16/08/12,IJ00013015,71.35,J TOMLINSON LTD, 
East Lindsey District Council,http://statistics.data.gov.uk/id/local-authority/32UC,Enforcement Team Leader,Buildings Maintenance - Responsive,16/08/12,IJ00013015,83.68,J TOMLINSON LTD, 
East Lindsey District Council,http://statistics.data.gov.uk/id/local-authority/32UC,TL Property,Buildings Maintenance - Responsive,16/08/12,IJ00013015,78.36,J TOMLINSON LTD, 
East Lindsey District Council,http://statistics.data.gov.uk/id/local-authority/32UC,Service Development Manager,Buildings Maintenance - Programmed,16/08/12,IJ00013015,2620.77,J TOMLINSON LTD, 
East Lindsey District Council,http://statistics.data.gov.uk/id/local-authority/32UC,Service Development Manager,Buildings Maintenance - Responsive,16/08/12,IJ00013015,164.6,J TOMLINSON LTD, 
East Lindsey District Council,http://statistics.data.gov.uk/id/local-authority/32UC,Service Development Manager,Buildings Maintenance - Responsive,16/08/12,IJ00013015,67.28,J TOMLINSON LTD, 
East Lindsey District Council,http://statistics.data.gov.uk/id/local-authority/32UC,Enforcement Team Leader,Buildings Maintenance - Responsive,16/08/12,IJ00013015,369.61,J TOMLINSON LTD, 
East Lindsey District Council,http://statistics.data.gov.uk/id/local-authority/32UC,TL Property,Buildings Maintenance - Responsive,16/08/12,IJ00013015,168.94,J TOMLINSON LTD, 
East Lindsey District Council,http://statistics.data.gov.uk/id/local-authority/32UC,Enforcement Team Leader,Buildings Maintenance - Responsive,16/08/12,IJ00013015,40.08,J TOMLINSON LTD, 
East Lindsey District Council,http://statistics.data.gov.uk/id/local-authority/32UC,Horncastle Pool Manager,Buildings Maintenance - Responsive,16/08/12,IJ00013015,151.67,J TOMLINSON LTD, 
East Lindsey District Council,http://statistics.data.gov.uk/id/local-authority/32UC,TL Property,Buildings Maintenance - Responsive,16/08/12,IJ00013015,190.9,J TOMLINSON LTD, 
East Lindsey District Council,http://statistics.data.gov.uk/id/local-authority/32UC,Service Development Manager,Buildings Maintenance - Responsive,16/08/12,IJ00013015,154.03,J TOMLINSON LTD, 
East Lindsey District Council,http://statistics.data.gov.uk/id/local-authority/32UC,Capital WIP,Grants and Contributions to Outside Bodies- No Service Recei,16/08/12,IJ00012966,1392,THM CONSTRUCTION, 
East Lindsey District Council,http://statistics.data.gov.uk/id/local-authority/32UC,Capital WIP,Grants and Contributions to Outside Bodies- No Service Recei,16/08/12,IJ00012974,5435.27,THM CONSTRUCTION, 
East Lindsey District Council,http://statistics.data.gov.uk/id/local-authority/32UC,Hsg Private Sector TL,Other Income,16/08/12,IJ00012974,-485.29,THM CONSTRUCTION, 
East Lindsey District Council,http://statistics.data.gov.uk/id/local-authority/32UC,Sports Centre Manager,Furniture and Equipment,16/08/12,IJ00012894,686,SAFE & SOUND SECURITY SYSTEMS LINKS LTD, 
East Lindsey District Council,http://statistics.data.gov.uk/id/local-authority/32UC,Policy & Project Manager,Water and Sewerage Charges,16/08/12,IJ00013024,334.18,ANGLIAN WATER, 
East Lindsey District Council,http://statistics.data.gov.uk/id/local-authority/32UC,Policy & Project Manager,Water and Sewerage Charges,16/08/12,IJ00013024,396.25,ANGLIAN WATER, 
East Lindsey District Council,http://statistics.data.gov.uk/id/local-authority/32UC,Service Development Manager,Water and Sewerage Charges,16/08/12,IJ00013027,617.61,ANGLIAN WATER, 
East Lindsey District Council,http://statistics.data.gov.uk/id/local-authority/32UC,Theatre Manager,Water and Sewerage Charges,16/08/12,IJ00013028,926.45,ANGLIAN WATER, 
East Lindsey District Council,http://statistics.data.gov.uk/id/local-authority/32UC,TL Property,Water and Sewerage Charges,16/08/12,IJ00013030,618.88,ANGLIAN WATER, 
East Lindsey District Council,http://statistics.data.gov.uk/id/local-authority/32UC,Hsg Advice & Homelessness TL,Bed and Breakfast Accommodation (Homelessness Service),16/08/12,IJ00012888,666.7,D BURGESS, 
East Lindsey District Council,http://statistics.data.gov.uk/id/local-authority/32UC,Development Control,Professional & Contractors Fees,16/08/12,IJ00012905,7951.57,ENPLAN UK LIMITED, 
East Lindsey District Council,http://statistics.data.gov.uk/id/local-authority/32UC,Development Control,Professional & Contractors Fees,16/08/12,IJ00012907,1627.01,ENPLAN UK LIMITED, 
East Lindsey District Council,http://statistics.data.gov.uk/id/local-authority/32UC,Capital WIP,Grants and Contributions to Outside Bodies- No Service Recei,16/08/12,IJ00012967,2062.6,LUXURY SUNDECKS, 
East Lindsey District Council,http://statistics.data.gov.uk/id/local-authority/32UC,Hsg Private Sector TL,Other Income,16/08/12,IJ00012967,-184.16,LUXURY SUNDECKS, 
East Lindsey District Council,http://statistics.data.gov.uk/id/local-authority/32UC,Capital WIP,Grants and Contributions to Outside Bodies- No Service Recei,16/08/12,IJ00012970,2063,LUXURY SUNDECKS, 
East Lindsey District Council,http://statistics.data.gov.uk/id/local-authority/32UC,Capital WIP,Grants and Contributions to Outside Bodies- No Service Recei,16/08/12,IJ00012971,3411.65,LUXURY SUNDECKS, 
East Lindsey District Council,http://statistics.data.gov.uk/id/local-authority/32UC,Hsg Private Sector TL,Other Income,16/08/12,IJ00012971,-304.61,LUXURY SUNDECKS, 
East Lindsey District Council,http://statistics.data.gov.uk/id/local-authority/32UC,Sports Centre Manager,Telephones,16/08/12,IJ00013110,40.72,DAISY COMMUNICATIONS LTD, 
East Lindsey District Council,http://statistics.data.gov.uk/id/local-authority/32UC,Service Development Manager,Telephones,16/08/12,IJ00013110,10.99,DAISY COMMUNICATIONS LTD, 
East Lindsey District Council,http://statistics.data.gov.uk/id/local-authority/32UC,Enforcement Team Leader,Other agencies,16/08/12,IJ00013110,22.34,DAISY COMMUNICATIONS LTD, 
East Lindsey District Council,http://statistics.data.gov.uk/id/local-authority/32UC,Customer Services Manager,Telephones,16/08/12,IJ00013110,49.98,DAISY COMMUNICATIONS LTD, 
East Lindsey District Council,http://statistics.data.gov.uk/id/local-authority/32UC,Policy & Project Manager,Telephones,16/08/12,IJ00013110,328.27,DAISY COMMUNICATIONS LTD, 
East Lindsey District Council,http://statistics.data.gov.uk/id/local-authority/32UC,Housing Support TL,Telephones,16/08/12,IJ00013110,11.12,DAISY COMMUNICATIONS LTD, 
East Lindsey District Council,http://statistics.data.gov.uk/id/local-authority/32UC,Meridian Facility Manager,Telephones,16/08/12,IJ00013110,147.95,DAISY COMMUNICATIONS LTD, 
East Lindsey District Council,http://statistics.data.gov.uk/id/local-authority/32UC,Embassy Pool Manager,Telephones,16/08/12,IJ00013110,33.58,DAISY COMMUNICATIONS LTD, 
East Lindsey District Council,http://statistics.data.gov.uk/id/local-authority/32UC,Meridian Facility Manager,Telephones,16/08/12,IJ00013110,66.94,DAISY COMMUNICATIONS LTD, 
East Lindsey District Council,http://statistics.data.gov.uk/id/local-authority/32UC,Policy & Project Manager,Telephones,16/08/12,IJ00013110,471.79,DAISY COMMUNICATIONS LTD, 
East Lindsey District Council,http://statistics.data.gov.uk/id/local-authority/32UC,BM Sports Facilities,Telephones,16/08/12,IJ00013110,10.99,DAISY COMMUNICATIONS LTD, 
East Lindsey District Council,http://statistics.data.gov.uk/id/local-authority/32UC,Theatre Manager,Telephones,16/08/12,IJ00013110,58.06,DAISY COMMUNICATIONS LTD, 
East Lindsey District Council,http://statistics.data.gov.uk/id/local-authority/32UC,Business Development Manager,Telephones,16/08/12,IJ00013110,36.47,DAISY COMMUNICATIONS LTD, 
East Lindsey District Council,http://statistics.data.gov.uk/id/local-authority/32UC,Building Control Partnership,Telephones,16/08/12,IJ00013110,54.1,DAISY COMMUNICATIONS LTD, 
East Lindsey District Council,http://statistics.data.gov.uk/id/local-authority/32UC,TL IT - Network & Comms,Telephones,16/08/12,IJ00013110,99.1,DAISY COMMUNICATIONS LTD, 
East Lindsey District Council,http://statistics.data.gov.uk/id/local-authority/32UC,Policy & Project Manager,Telephones,16/08/12,IJ00013110,422.67,DAISY COMMUNICATIONS LTD, 
East Lindsey District Council,http://statistics.data.gov.uk/id/local-authority/32UC,Sports Centre Manager,Telephones,16/08/12,IJ00013110,23.75,DAISY COMMUNICATIONS LTD, 
East Lindsey District Council,http://statistics.data.gov.uk/id/local-authority/32UC,TL Property,Telephones,16/08/12,IJ00013110,10.99,DAISY COMMUNICATIONS LTD, 
East Lindsey District Council,http://statistics.data.gov.uk/id/local-authority/32UC,Hsg Private Sector TL,Telephones,16/08/12,IJ00013110,11,DAISY COMMUNICATIONS LTD, 
East Lindsey District Council,http://statistics.data.gov.uk/id/local-authority/32UC,Technical Services Team Leader,Telephones,16/08/12,IJ00013110,11.02,DAISY COMMUNICATIONS LTD, 
East Lindsey District Council,http://statistics.data.gov.uk/id/local-authority/32UC,Commercial Team Leader,Telephones,16/08/12,IJ00013110,34.52,DAISY COMMUNICATIONS LTD, 
East Lindsey District Council,http://statistics.data.gov.uk/id/local-authority/32UC,TL Property,Telephones,16/08/12,IJ00013110,21.98,DAISY COMMUNICATIONS LTD, 
East Lindsey District Council,http://statistics.data.gov.uk/id/local-authority/32UC,TL Property,Telephones,16/08/12,IJ00013110,33.97,DAISY COMMUNICATIONS LTD, 
East Lindsey District Council,http://statistics.data.gov.uk/id/local-authority/32UC,TL Property,Telephones,16/08/12,IJ00013110,10.99,DAISY COMMUNICATIONS LTD, 
East Lindsey District Council,http://statistics.data.gov.uk/id/local-authority/32UC,TL Property,Telephones,16/08/12,IJ00013110,11.03,DAISY COMMUNICATIONS LTD, 
East Lindsey District Council,http://statistics.data.gov.uk/id/local-authority/32UC,TL Property,Telephones,16/08/12,IJ00013110,22.23,DAISY COMMUNICATIONS LTD, 
East Lindsey District Council,http://statistics.data.gov.uk/id/local-authority/32UC,TL Property,Telephones,16/08/12,IJ00013110,57.59,DAISY COMMUNICATIONS LTD, 
East Lindsey District Council,http://statistics.data.gov.uk/id/local-authority/32UC,Theatre Manager,Telephones,16/08/12,IJ00013110,54.95,DAISY COMMUNICATIONS LTD, 
East Lindsey District Council,http://statistics.data.gov.uk/id/local-authority/32UC,SM Economic Regen & Property,Telephones,16/08/12,IJ00013110,11.02,DAISY COMMUNICATIONS LTD, 
East Lindsey District Council,http://statistics.data.gov.uk/id/local-authority/32UC,Horncastle Pool Manager,Telephones,16/08/12,IJ00013110,53.69,DAISY COMMUNICATIONS LTD, 
East Lindsey District Council,http://statistics.data.gov.uk/id/local-authority/32UC,Embassy Pool Manager,Telephones,16/08/12,IJ00013110,13.1,DAISY COMMUNICATIONS LTD, 
East Lindsey District Council,http://statistics.data.gov.uk/id/local-authority/32UC,Embassy Pool Manager,Telephones,16/08/12,IJ00013110,11.13,DAISY COMMUNICATIONS LTD, 
East Lindsey District Council,http://statistics.data.gov.uk/id/local-authority/32UC,Theatre Manager,Telephones,16/08/12,IJ00013110,13.38,DAISY COMMUNICATIONS LTD, 
East Lindsey District Council,http://statistics.data.gov.uk/id/local-authority/32UC,Service Development Manager,Telephones,16/08/12,IJ00013110,16.11,DAISY COMMUNICATIONS LTD, 
East Lindsey District Council,http://statistics.data.gov.uk/id/local-authority/32UC,Service Development Manager,Telephones,16/08/12,IJ00013110,22.87,DAISY COMMUNICATIONS LTD, 
East Lindsey District Council,http://statistics.data.gov.uk/id/local-authority/32UC,Technical Services Team Leader,Telephones,16/08/12,IJ00013110,14.3,DAISY COMMUNICATIONS LTD, 
East Lindsey District Council,http://statistics.data.gov.uk/id/local-authority/32UC,Technical Services Team Leader,Other Communication Costs,16/08/12,IJ00013110,10.99,DAISY COMMUNICATIONS LTD, 
East Lindsey District Council,http://statistics.data.gov.uk/id/local-authority/32UC,Corporate Accounting,Telephones,16/08/12,IJ00013110,10.99,DAISY COMMUNICATIONS LTD, 
East Lindsey District Council,http://statistics.data.gov.uk/id/local-authority/32UC,TL IT - Network & Comms,Telephones,16/08/12,IJ00013110,21.98,DAISY COMMUNICATIONS LTD, 
East Lindsey District Council,http://statistics.data.gov.uk/id/local-authority/32UC,Waste Services Manager,Telephones,16/08/12,IJ00013110,11.03,DAISY COMMUNICATIONS LTD, 
East Lindsey District Council,http://statistics.data.gov.uk/id/local-authority/32UC,Business Development Manager,Other Miscellaneous Expenses,16/08/12,IJ00013056,813.75,CARRIER DIRECT LIMITED, 
East Lindsey District Council,http://statistics.data.gov.uk/id/local-authority/32UC,Development Control,"Books, Magazines and Other Publications",16/08/12,IJ00013066,515,THOMSON REUTERS, 
East Lindsey District Council,http://statistics.data.gov.uk/id/local-authority/32UC,Meridian Facility Manager,Materials and Consumables,16/08/12,IJ00012993,910,PAC WRISTBANDS LTD, 
East Lindsey District Council,http://statistics.data.gov.uk/id/local-authority/32UC,Waste Services Manager,Maintenance,16/08/12,IJ00013076,682.93,MAY GURNEY FLEET & PASSENGER SERVICES LTD, 
East Lindsey District Council,http://statistics.data.gov.uk/id/local-authority/32UC,Technical Services Team Leader,Other Miscellaneous Expenses,16/08/12,IJ00012901,755,GREEN LIGHT TRAFFIC MANAGEMENT, 
East Lindsey District Council,http://statistics.data.gov.uk/id/local-authority/32UC,Sports Development,Materials and Consumables,16/08/12,IJ00012978,1234.5,PROTOUCH SECURITY LTD, 
East Lindsey District Council,http://statistics.data.gov.uk/id/local-authority/32UC,Sports Development,Other Miscellaneous Expenses,16/08/12,IJ00012981,567,PROTOUCH SECURITY LTD, 
East Lindsey District Council,http://statistics.data.gov.uk/id/local-authority/32UC,Improvement & Development Mngr,Staff Training Expenses,16/08/12,IJ00012883,1490.8,ROSPA, 
East Lindsey District Council,http://statistics.data.gov.uk/id/local-authority/32UC,Environment Team Leader,Staff Training Expenses,16/08/12,IJ00012968,400,ULTRA ELECTRONICS, 
East Lindsey District Council,http://statistics.data.gov.uk/id/local-authority/32UC,Environment Team Leader,License Fees,16/08/12,IJ00012968,396,ULTRA ELECTRONICS, 
East Lindsey District Council,http://statistics.data.gov.uk/id/local-authority/32UC,Meridian Facility Manager,Buildings Maintenance - Programmed,16/08/12,IJ00013044,1004.05,MIDLAND FILTRATION LTD, 
East Lindsey District Council,http://statistics.data.gov.uk/id/local-authority/32UC,Technical Services Team Leader,Performers and Entertainers Fees,16/08/12,IJ00012975,675,MARKMARK PRODUCTIONS, 
East Lindsey District Council,http://statistics.data.gov.uk/id/local-authority/32UC,Sports Development,Other Miscellaneous Expenses,16/08/12,IJ00012900,3275,FOOLS PARADISE LTD, 
East Lindsey District Council,http://statistics.data.gov.uk/id/local-authority/32UC,Cultural & Related Services,Performers and Entertainers Fees,16/08/12,IJ00012994,2500,GORDON POOLE AGENCY LTD, 
East Lindsey District Council,http://statistics.data.gov.uk/id/local-authority/32UC,Theatre Manager,Performers and Entertainers Fees,16/08/12,IJ00012944,3853.8,QTALENT LTD, 
East Lindsey District Council,http://statistics.data.gov.uk/id/local-authority/32UC,Theatre Manager,Performers and Entertainers Fees,16/08/12,IJ00012944,-234,QTALENT LTD, 
East Lindsey District Council,http://statistics.data.gov.uk/id/local-authority/32UC,Enforcement Team Leader,Buildings Maintenance - Responsive,16/08/12,IJ00013053,168,TECHPARC LIMITED, 
East Lindsey District Council,http://statistics.data.gov.uk/id/local-authority/32UC,Enforcement Team Leader,Buildings Maintenance - Programmed,16/08/12,IJ00013053,715.6,TECHPARC LIMITED, 
East Lindsey District Council,http://statistics.data.gov.uk/id/local-authority/32UC,Corporate Accounting,Other Miscellaneous Expenses,17/08/12,IJ00013145,5928.5,HOUND ENVELOPES LTD, 
East Lindsey District Council,http://statistics.data.gov.uk/id/local-authority/32UC,Performance Monitoring Manager,Other Miscellaneous Expenses,17/08/12,IJ00013145,187.3,HOUND ENVELOPES LTD, 
East Lindsey District Council,http://statistics.data.gov.uk/id/local-authority/32UC,Waste Services Manager,Tyres,23/08/12,IJ00013247,575.26,B A BUSH & SON LIMITED, 
East Lindsey District Council,http://statistics.data.gov.uk/id/local-authority/32UC,Waste Services Manager,Tyres,23/08/12,IJ00013250,575.26,B A BUSH & SON LIMITED, 
East Lindsey District Council,http://statistics.data.gov.uk/id/local-authority/32UC,Meridian Facility Manager,Furniture and Equipment,23/08/12,IJ00013146,36.5,J P LENNARD LTD, 
East Lindsey District Council,http://statistics.data.gov.uk/id/local-authority/32UC,Meridian Facility Manager,Materials and Consumables,23/08/12,IJ00013146,868,J P LENNARD LTD, 
East Lindsey District Council,http://statistics.data.gov.uk/id/local-authority/32UC,Theatre Manager,Performers and Entertainers Fees,23/08/12,IJ00013337,3624.67,JANICE SUTTON, 
East Lindsey District Council,http://statistics.data.gov.uk/id/local-authority/32UC,Theatre Manager,Performers and Entertainers Fees,23/08/12,IJ00013337,-852,JANICE SUTTON, 
East Lindsey District Council,http://statistics.data.gov.uk/id/local-authority/32UC,Theatre Manager,Banking Charges,23/08/12,IJ00013344,732.59,BARCLAYS MERCHANT SERVICES, 
East Lindsey District Council,http://statistics.data.gov.uk/id/local-authority/32UC,Policy & Project Manager,Other Miscellaneous Expenses,23/08/12,IJ00013196,14815.73,HERITAGE TRUST OF LINCOLNSHIRE LTD, 
East Lindsey District Council,http://statistics.data.gov.uk/id/local-authority/32UC,Democracy Manager,Postages,23/08/12,IJ00013177,1511,ROYAL MAIL, 
East Lindsey District Council,http://statistics.data.gov.uk/id/local-authority/32UC,Democracy Manager,Postages,23/08/12,IJ00013178,1530.01,ROYAL MAIL, 
East Lindsey District Council,http://statistics.data.gov.uk/id/local-authority/32UC,Enforcement Team Leader,Professional & Contractors Fees,23/08/12,IJ00013207,3144,LINCOLNSHIRE COUNTY COUNCIL, 
East Lindsey District Council,http://statistics.data.gov.uk/id/local-authority/32UC,Waste Services Manager,Telephones,23/08/12,IJ00013333,1345.37,LINCOLNSHIRE COUNTY COUNCIL, 
East Lindsey District Council,http://statistics.data.gov.uk/id/local-authority/32UC,Meridian Facility Manager,Telephones,23/08/12,IJ00013333,1291.37,LINCOLNSHIRE COUNTY COUNCIL, 
East Lindsey District Council,http://statistics.data.gov.uk/id/local-authority/32UC,TL IT - Network & Comms,Telephones,23/08/12,IJ00013333,5284.33,LINCOLNSHIRE COUNTY COUNCIL, 
East Lindsey District Council,http://statistics.data.gov.uk/id/local-authority/32UC,TL IT - Network & Comms,Telephones,23/08/12,IJ00013333,1995.52,LINCOLNSHIRE COUNTY COUNCIL, 
East Lindsey District Council,http://statistics.data.gov.uk/id/local-authority/32UC,BALANCE  SHEET,Payroll-Unison,23/08/12,IJ00013278,1735.2,UNISON, 
East Lindsey District Council,http://statistics.data.gov.uk/id/local-authority/32UC,Enforcement Team Leader,"Books, Magazines and Other Publications",23/08/12,IJ00013267,19.9,NEW AUTO LIMITED, 
East Lindsey District Council,http://statistics.data.gov.uk/id/local-authority/32UC,Enforcement Team Leader,Other Miscellaneous Expenses,23/08/12,IJ00013267,2848,NEW AUTO LIMITED, 
East Lindsey District Council,http://statistics.data.gov.uk/id/local-authority/32UC,TL Property,Electricity,23/08/12,IJ00013325,3840.23,SOUTHERN ELECTRIC PLC, 
East Lindsey District Council,http://statistics.data.gov.uk/id/local-authority/32UC,Policy & Project Manager,Electricity,23/08/12,IJ00013325,851.18,SOUTHERN ELECTRIC PLC, 
East Lindsey District Council,http://statistics.data.gov.uk/id/local-authority/32UC,Service Development Manager,Electricity,23/08/12,IJ00013325,169.02,SOUTHERN ELECTRIC PLC, 
East Lindsey District Council,http://statistics.data.gov.uk/id/local-authority/32UC,Technical Services Team Leader,Electricity,23/08/12,IJ00013325,28.19,SOUTHERN ELECTRIC PLC, 
East Lindsey District Council,http://statistics.data.gov.uk/id/local-authority/32UC,Theatre Manager,Electricity,23/08/12,IJ00013325,1312.8,SOUTHERN ELECTRIC PLC, 
East Lindsey District Council,http://statistics.data.gov.uk/id/local-authority/32UC,Meridian Facility Manager,Electricity,23/08/12,IJ00013325,461.12,SOUTHERN ELECTRIC PLC, 
East Lindsey District Council,http://statistics.data.gov.uk/id/local-authority/32UC,TL Property,Electricity,23/08/12,IJ00013325,229.03,SOUTHERN ELECTRIC PLC, 
East Lindsey District Council,http://statistics.data.gov.uk/id/local-authority/32UC,TL Property,Electricity,23/08/12,IJ00013325,102.34,SOUTHERN ELECTRIC PLC, 
East Lindsey District Council,http://statistics.data.gov.uk/id/local-authority/32UC,Hsg Private Sector TL,Electricity,23/08/12,IJ00013325,30.17,SOUTHERN ELECTRIC PLC, 
East Lindsey District Council,http://statistics.data.gov.uk/id/local-authority/32UC,Customer Services Manager,Electricity,23/08/12,IJ00013325,383.22,SOUTHERN ELECTRIC PLC, 
East Lindsey District Council,http://statistics.data.gov.uk/id/local-authority/32UC,TL Property,Electricity,23/08/12,IJ00013326,259.87,SOUTHERN ELECTRIC PLC, 
East Lindsey District Council,http://statistics.data.gov.uk/id/local-authority/32UC,Service Development Manager,Electricity,23/08/12,IJ00013326,250,SOUTHERN ELECTRIC PLC, 
East Lindsey District Council,http://statistics.data.gov.uk/id/local-authority/32UC,Technical Services Team Leader,Electricity,23/08/12,IJ00013326,-14.5,SOUTHERN ELECTRIC PLC, 
East Lindsey District Council,http://statistics.data.gov.uk/id/local-authority/32UC,Technical Services Team Leader,Electricity,23/08/12,IJ00013326,73.38,SOUTHERN ELECTRIC PLC, 
East Lindsey District Council,http://statistics.data.gov.uk/id/local-authority/32UC,Technical Services Team Leader,Electricity,23/08/12,IJ00013326,135.34,SOUTHERN ELECTRIC PLC, 
East Lindsey District Council,http://statistics.data.gov.uk/id/local-authority/32UC,Technical Services Team Leader,Electricity,23/08/12,IJ00013326,-24.88,SOUTHERN ELECTRIC PLC, 
East Lindsey District Council,http://statistics.data.gov.uk/id/local-authority/32UC,Technical Services Team Leader,Electricity,23/08/12,IJ00013326,-57.41,SOUTHERN ELECTRIC PLC, 
East Lindsey District Council,http://statistics.data.gov.uk/id/local-authority/32UC,Technical Services Team Leader,Electricity,23/08/12,IJ00013326,766.91,SOUTHERN ELECTRIC PLC, 
East Lindsey District Council,http://statistics.data.gov.uk/id/local-authority/32UC,Enforcement Team Leader,Electricity,23/08/12,IJ00013326,774.53,SOUTHERN ELECTRIC PLC, 
East Lindsey District Council,http://statistics.data.gov.uk/id/local-authority/32UC,Technical Services Team Leader,Electricity,23/08/12,IJ00013326,774.52,SOUTHERN ELECTRIC PLC, 
East Lindsey District Council,http://statistics.data.gov.uk/id/local-authority/32UC,TL Property,Electricity,23/08/12,IJ00013311,2001.09,SOUTHERN ELECTRIC PLC, 
East Lindsey District Council,http://statistics.data.gov.uk/id/local-authority/32UC,TL Property,Electricity,23/08/12,IJ00013311,1101.75,SOUTHERN ELECTRIC PLC, 
East Lindsey District Council,http://statistics.data.gov.uk/id/local-authority/32UC,Policy & Project Manager,Electricity,23/08/12,IJ00013311,889.84,SOUTHERN ELECTRIC PLC, 
East Lindsey District Council,http://statistics.data.gov.uk/id/local-authority/32UC,Service Development Manager,Electricity,23/08/12,IJ00013311,131.42,SOUTHERN ELECTRIC PLC, 
East Lindsey District Council,http://statistics.data.gov.uk/id/local-authority/32UC,Service Development Manager,Electricity,23/08/12,IJ00013311,84.8,SOUTHERN ELECTRIC PLC, 
East Lindsey District Council,http://statistics.data.gov.uk/id/local-authority/32UC,Technical Services Team Leader,Electricity,23/08/12,IJ00013311,84.31,SOUTHERN ELECTRIC PLC, 
East Lindsey District Council,http://statistics.data.gov.uk/id/local-authority/32UC,Technical Services Team Leader,Electricity,23/08/12,IJ00013311,209.35,SOUTHERN ELECTRIC PLC, 
East Lindsey District Council,http://statistics.data.gov.uk/id/local-authority/32UC,Meridian Facility Manager,Electricity,23/08/12,IJ00013311,4757.49,SOUTHERN ELECTRIC PLC, 
East Lindsey District Council,http://statistics.data.gov.uk/id/local-authority/32UC,Service Development Manager,Electricity,23/08/12,IJ00013311,55.07,SOUTHERN ELECTRIC PLC, 
East Lindsey District Council,http://statistics.data.gov.uk/id/local-authority/32UC,Service Development Manager,Electricity,23/08/12,IJ00013311,130.47,SOUTHERN ELECTRIC PLC, 
East Lindsey District Council,http://statistics.data.gov.uk/id/local-authority/32UC,TL Property,Electricity,23/08/12,IJ00013303,234.11,SOUTHERN ELECTRIC PLC, 
East Lindsey District Council,http://statistics.data.gov.uk/id/local-authority/32UC,Technical Services Team Leader,Electricity,23/08/12,IJ00013303,100.03,SOUTHERN ELECTRIC PLC, 
East Lindsey District Council,http://statistics.data.gov.uk/id/local-authority/32UC,Technical Services Team Leader,Electricity,23/08/12,IJ00013303,35.92,SOUTHERN ELECTRIC PLC, 
East Lindsey District Council,http://statistics.data.gov.uk/id/local-authority/32UC,Theatre Manager,Electricity,23/08/12,IJ00013303,1535.51,SOUTHERN ELECTRIC PLC, 
East Lindsey District Council,http://statistics.data.gov.uk/id/local-authority/32UC,Sports Centre Manager,Electricity,23/08/12,IJ00013303,1507.76,SOUTHERN ELECTRIC PLC, 
East Lindsey District Council,http://statistics.data.gov.uk/id/local-authority/32UC,Enforcement Team Leader,Electricity,23/08/12,IJ00013303,158.25,SOUTHERN ELECTRIC PLC, 
East Lindsey District Council,http://statistics.data.gov.uk/id/local-authority/32UC,Business Development Manager,Electricity,23/08/12,IJ00013303,6332.2,SOUTHERN ELECTRIC PLC, 
East Lindsey District Council,http://statistics.data.gov.uk/id/local-authority/32UC,SM Economic Regen & Property,Electricity,23/08/12,IJ00013303,31.69,SOUTHERN ELECTRIC PLC, 
East Lindsey District Council,http://statistics.data.gov.uk/id/local-authority/32UC,Service Development Manager,Electricity,23/08/12,IJ00013303,177.89,SOUTHERN ELECTRIC PLC, 
East Lindsey District Council,http://statistics.data.gov.uk/id/local-authority/32UC,Hsg Private Sector TL,Electricity,23/08/12,IJ00013303,21.52,SOUTHERN ELECTRIC PLC, 
East Lindsey District Council,http://statistics.data.gov.uk/id/local-authority/32UC,Policy & Project Manager,Electricity,23/08/12,IJ00013295,416.31,SOUTHERN ELECTRIC PLC, 
East Lindsey District Council,http://statistics.data.gov.uk/id/local-authority/32UC,Technical Services Team Leader,Electricity,23/08/12,IJ00013295,398.67,SOUTHERN ELECTRIC PLC, 
East Lindsey District Council,http://statistics.data.gov.uk/id/local-authority/32UC,Technical Services Team Leader,Electricity,23/08/12,IJ00013295,-6.02,SOUTHERN ELECTRIC PLC, 
East Lindsey District Council,http://statistics.data.gov.uk/id/local-authority/32UC,Technical Services Team Leader,Electricity,23/08/12,IJ00013295,-437.95,SOUTHERN ELECTRIC PLC, 
East Lindsey District Council,http://statistics.data.gov.uk/id/local-authority/32UC,Sports Centre Manager,Electricity,23/08/12,IJ00013295,686.16,SOUTHERN ELECTRIC PLC, 
East Lindsey District Council,http://statistics.data.gov.uk/id/local-authority/32UC,Embassy Pool Manager,Electricity,23/08/12,IJ00013295,-7.6,SOUTHERN ELECTRIC PLC, 
East Lindsey District Council,http://statistics.data.gov.uk/id/local-authority/32UC,Business Development Manager,Electricity,23/08/12,IJ00013295,212.78,SOUTHERN ELECTRIC PLC, 
East Lindsey District Council,http://statistics.data.gov.uk/id/local-authority/32UC,Meridian Facility Manager,Electricity,23/08/12,IJ00013295,179.83,SOUTHERN ELECTRIC PLC, 
East Lindsey District Council,http://statistics.data.gov.uk/id/local-authority/32UC,Service Development Manager,Electricity,23/08/12,IJ00013295,96.92,SOUTHERN ELECTRIC PLC, 
East Lindsey District Council,http://statistics.data.gov.uk/id/local-authority/32UC,Service Development Manager,Electricity,23/08/12,IJ00013295,50.66,SOUTHERN ELECTRIC PLC, 
East Lindsey District Council,http://statistics.data.gov.uk/id/local-authority/32UC,Policy & Project Manager,Agency Staff,23/08/12,IJ00013222,617.41,WORKFORCE UNLIMITED, 
East Lindsey District Council,http://statistics.data.gov.uk/id/local-authority/32UC,Hsg Bens Quality Assurance TL,Other Miscellaneous Expenses,23/08/12,IJ00013346,90.12,ALLPAY NET LTD, 
East Lindsey District Council,http://statistics.data.gov.uk/id/local-authority/32UC,Council Tax TL,Other Miscellaneous Expenses,23/08/12,IJ00013346,3721.57,ALLPAY NET LTD, 
East Lindsey District Council,http://statistics.data.gov.uk/id/local-authority/32UC,Capital WIP,Works to Buildings (main Contractor),23/08/12,IJ00013227,1000,AJET DRAIN SERVICES, 
East Lindsey District Council,http://statistics.data.gov.uk/id/local-authority/32UC,Theatre Manager,Furniture and Equipment,23/08/12,IJ00013265,980,D & D ENGINEERING (LINCS) LTD, 
East Lindsey District Council,http://statistics.data.gov.uk/id/local-authority/32UC,Meridian Facility Manager,Furniture and Equipment,23/08/12,IJ00013300,536.46,ESPO, 
East Lindsey District Council,http://statistics.data.gov.uk/id/local-authority/32UC,Meridian Facility Manager,Materials and Consumables,23/08/12,IJ00013300,188.5,ESPO, 
East Lindsey District Council,http://statistics.data.gov.uk/id/local-authority/32UC,Business Development Manager,Stationery,23/08/12,IJ00013300,6.5,ESPO, 
East Lindsey District Council,http://statistics.data.gov.uk/id/local-authority/32UC,Meridian Facility Manager,Stationery,23/08/12,IJ00013300,20.15,ESPO, 
East Lindsey District Council,http://statistics.data.gov.uk/id/local-authority/32UC,Business Development Manager,Materials and Consumables,23/08/12,IJ00013300,57.8,ESPO, 
East Lindsey District Council,http://statistics.data.gov.uk/id/local-authority/32UC,Horncastle Pool Manager,Stationery,23/08/12,IJ00013300,55.54,ESPO, 
East Lindsey District Council,http://statistics.data.gov.uk/id/local-authority/32UC,Democracy Manager,Stationery,23/08/12,IJ00013300,2.75,ESPO, 
East Lindsey District Council,http://statistics.data.gov.uk/id/local-authority/32UC,Embassy Pool Manager,Stationery,23/08/12,IJ00013291,27.01,ESPO, 
East Lindsey District Council,http://statistics.data.gov.uk/id/local-authority/32UC,Sports Centre Manager,Cleaning Contract,23/08/12,IJ00013291,94.46,ESPO, 
East Lindsey District Council,http://statistics.data.gov.uk/id/local-authority/32UC,Development Control,Stationery,23/08/12,IJ00013291,6.6,ESPO, 
East Lindsey District Council,http://statistics.data.gov.uk/id/local-authority/32UC,TL Partnerships & Grants,Stationery,23/08/12,IJ00013291,4,ESPO, 
East Lindsey District Council,http://statistics.data.gov.uk/id/local-authority/32UC,Housing Support TL,Stationery,23/08/12,IJ00013291,82.65,ESPO, 
East Lindsey District Council,http://statistics.data.gov.uk/id/local-authority/32UC,Sports Development,Stationery,23/08/12,IJ00013291,24.38,ESPO, 
East Lindsey District Council,http://statistics.data.gov.uk/id/local-authority/32UC,Horncastle Pool Manager,Cleaning Contract,23/08/12,IJ00013291,163.48,ESPO, 
East Lindsey District Council,http://statistics.data.gov.uk/id/local-authority/32UC,Sports Centre Manager,Furniture and Equipment,23/08/12,IJ00013291,14,ESPO, 
East Lindsey District Council,http://statistics.data.gov.uk/id/local-authority/32UC,Policy & Project Manager,Stationery,23/08/12,IJ00013291,106.46,ESPO, 
East Lindsey District Council,http://statistics.data.gov.uk/id/local-authority/32UC,Hsg Private Sector TL,Stationery,23/08/12,IJ00013291,9.65,ESPO, 
East Lindsey District Council,http://statistics.data.gov.uk/id/local-authority/32UC,Sports Development,Furniture and Equipment,23/08/12,IJ00013291,66.64,ESPO, 
East Lindsey District Council,http://statistics.data.gov.uk/id/local-authority/32UC,Democracy Manager,Stationery,23/08/12,IJ00013291,7.65,ESPO, 
East Lindsey District Council,http://statistics.data.gov.uk/id/local-authority/32UC,Policy & Project Manager,Other Miscellaneous Expenses,23/08/12,IJ00013291,52,ESPO, 
East Lindsey District Council,http://statistics.data.gov.uk/id/local-authority/32UC,Policy & Project Manager,Stationery,23/08/12,IJ00013291,30.75,ESPO, 
East Lindsey District Council,http://statistics.data.gov.uk/id/local-authority/32UC,Health Team Leader,Stationery,23/08/12,IJ00013291,17.2,ESPO, 
East Lindsey District Council,http://statistics.data.gov.uk/id/local-authority/32UC,Service Development Manager,Materials and Consumables,23/08/12,IJ00013291,5.7,ESPO, 
East Lindsey District Council,http://statistics.data.gov.uk/id/local-authority/32UC,Service Development Manager,Materials and Consumables,23/08/12,IJ00013291,207.96,ESPO, 
East Lindsey District Council,http://statistics.data.gov.uk/id/local-authority/32UC,Service Development Manager,Materials and Consumables,23/08/12,IJ00013291,99.56,ESPO, 
East Lindsey District Council,http://statistics.data.gov.uk/id/local-authority/32UC,Hsg Advice & Homelessness TL,Electricity,23/08/12,IJ00013252,1207.68,EDF ENERGY 1 LIMITED, 
East Lindsey District Council,http://statistics.data.gov.uk/id/local-authority/32UC,Hsg Advice & Homelessness TL,Electricity,23/08/12,IJ00013252,-1150.09,EDF ENERGY 1 LIMITED, 
East Lindsey District Council,http://statistics.data.gov.uk/id/local-authority/32UC,Hsg Advice & Homelessness TL,Gas,23/08/12,IJ00013252,1207.68,EDF ENERGY 1 LIMITED, 
East Lindsey District Council,http://statistics.data.gov.uk/id/local-authority/32UC,Hsg Advice & Homelessness TL,Gas,23/08/12,IJ00013252,1028.64,EDF ENERGY 1 LIMITED, 
East Lindsey District Council,http://statistics.data.gov.uk/id/local-authority/32UC,Hsg Advice & Homelessness TL,Gas,23/08/12,IJ00013252,1314.47,EDF ENERGY 1 LIMITED, 
East Lindsey District Council,http://statistics.data.gov.uk/id/local-authority/32UC,Hsg Advice & Homelessness TL,Gas,23/08/12,IJ00013252,-1150.08,EDF ENERGY 1 LIMITED, 
East Lindsey District Council,http://statistics.data.gov.uk/id/local-authority/32UC,Environment Team Leader,Other Private Contractors,23/08/12,IJ00013156,715,NEW LINX HOUSING TRUST, 
East Lindsey District Council,http://statistics.data.gov.uk/id/local-authority/32UC,Collection Fund,Payment to NNDR Pool,23/08/12,IJ00013345,1489473,DEPARTMENT FOR COMMUNITIES AND LOCAL, 
East Lindsey District Council,http://statistics.data.gov.uk/id/local-authority/32UC,Corporate Accounting,Non Domestic Rates,23/08/12,IJ00013345,-585451,DEPARTMENT FOR COMMUNITIES AND LOCAL, 
East Lindsey District Council,http://statistics.data.gov.uk/id/local-authority/32UC,Waste Services Manager,Agency Staff,23/08/12,IJ00013245,5255.09,CLOSE INVOICE FINANCE LTD, 
East Lindsey District Council,http://statistics.data.gov.uk/id/local-authority/32UC,Democracy Manager,Advertising - Legal And Public,23/08/12,IJ00013184,1899,NORTHCLIFFE MEDIA LIMITED, 
East Lindsey District Council,http://statistics.data.gov.uk/id/local-authority/32UC,TL IT - Infrastructure,External Printing and Design Costs,23/08/12,IJ00013298,1052.58,RICOH UK LTD, 
East Lindsey District Council,http://statistics.data.gov.uk/id/local-authority/32UC,TL IT - Infrastructure,External Printing and Design Costs,23/08/12,IJ00013309,7971.29,RICOH UK LTD, 
East Lindsey District Council,http://statistics.data.gov.uk/id/local-authority/32UC,TL IT - Infrastructure,External Printing and Design Costs,23/08/12,IJ00013313,3050.27,RICOH UK LTD, 
East Lindsey District Council,http://statistics.data.gov.uk/id/local-authority/32UC,TL IT - Infrastructure,External Printing and Design Costs,23/08/12,IJ00013320,1065.36,RICOH UK LTD, 
East Lindsey District Council,http://statistics.data.gov.uk/id/local-authority/32UC,TL IT - Infrastructure,External Printing and Design Costs,23/08/12,IJ00013322,1074.51,RICOH UK LTD, 
East Lindsey District Council,http://statistics.data.gov.uk/id/local-authority/32UC,Capital WIP,Works to Buildings (main Contractor),23/08/12,IJ00013231,795,PELL PLANT HIRE LTD, 
East Lindsey District Council,http://statistics.data.gov.uk/id/local-authority/32UC,Capital WIP,Works to Buildings (main Contractor),23/08/12,IJ00013232,905,PELL PLANT HIRE LTD, 
East Lindsey District Council,http://statistics.data.gov.uk/id/local-authority/32UC,BALANCE  SHEET,Payroll-Gmbatu,23/08/12,IJ00013277,721.89,GMB NATIONAL ADMINISTRATION UNIT, 
East Lindsey District Council,http://statistics.data.gov.uk/id/local-authority/32UC,Theatre Manager,Performers and Entertainers Fees,23/08/12,IJ00013336,3000,PREMIER STAGE PRODUCTIONS LTD, 
East Lindsey District Council,http://statistics.data.gov.uk/id/local-authority/32UC,Waste Services Manager,Fuel & Oil,23/08/12,IJ00013233,9228,CHANDLERS OIL & GAS, 
East Lindsey District Council,http://statistics.data.gov.uk/id/local-authority/32UC,Waste Services Manager,Fuel & Oil,23/08/12,IJ00013234,19609.5,CHANDLERS OIL & GAS, 
East Lindsey District Council,http://statistics.data.gov.uk/id/local-authority/32UC,Planning & Housing Policy Manager,Other Miscellaneous Expenses,23/08/12,IJ00013167,1194,HAYMARKET PUBLISHING SERVICES LTD, 
East Lindsey District Council,http://statistics.data.gov.uk/id/local-authority/32UC,Cultural & Related Services,Advertising - Events,23/08/12,IJ00013157,3330,LAVA, 
East Lindsey District Council,http://statistics.data.gov.uk/id/local-authority/32UC,Service Development Manager,Agency Staff,23/08/12,IJ00013172,2843.39,THE WORKSHOP (WISBECH) LIMITED, 
East Lindsey District Council,http://statistics.data.gov.uk/id/local-authority/32UC,Service Development Manager,Agency Staff,23/08/12,IJ00013173,3967.28,THE WORKSHOP (WISBECH) LIMITED, 
East Lindsey District Council,http://statistics.data.gov.uk/id/local-authority/32UC,Service Development Manager,Agency Staff,23/08/12,IJ00013174,3684.2,THE WORKSHOP (WISBECH) LIMITED, 
East Lindsey District Council,http://statistics.data.gov.uk/id/local-authority/32UC,Theatre Manager,Performers and Entertainers Fees,23/08/12,IJ00013335,5055.4,QDOS ENTERTAINMENT (PRODUCTIONS) LTD, 
East Lindsey District Council,http://statistics.data.gov.uk/id/local-authority/32UC,Business Development Officer,Grants and Contributions to Outside Bodies- No Service Recei,23/08/12,IJ00013150,5221.55,SKEGNESS ACADEMY, 
East Lindsey District Council,http://statistics.data.gov.uk/id/local-authority/32UC,Embassy Pool Manager,Furniture and Equipment,23/08/12,IJ00013194,1477.6,CAWMC ENGINEERING LTD, 
East Lindsey District Council,http://statistics.data.gov.uk/id/local-authority/32UC,Business Development Manager,Buildings Maintenance - Responsive,23/08/12,IJ00013315,54.92,J TOMLINSON LTD, 
East Lindsey District Council,http://statistics.data.gov.uk/id/local-authority/32UC,TL Property,Buildings Maintenance - Responsive,23/08/12,IJ00013315,143.69,J TOMLINSON LTD, 
East Lindsey District Council,http://statistics.data.gov.uk/id/local-authority/32UC,TL Property,Buildings Maintenance - Responsive,23/08/12,IJ00013315,20,J TOMLINSON LTD, 
East Lindsey District Council,http://statistics.data.gov.uk/id/local-authority/32UC,Theatre Manager,Advertising - Events,23/08/12,IJ00013315,529.16,J TOMLINSON LTD, 
East Lindsey District Council,http://statistics.data.gov.uk/id/local-authority/32UC,Embassy Pool Manager,Furniture and Equipment,23/08/12,IJ00013315,92,J TOMLINSON LTD, 
East Lindsey District Council,http://statistics.data.gov.uk/id/local-authority/32UC,Policy & Project Manager,Buildings Maintenance - Responsive,23/08/12,IJ00013315,97.06,J TOMLINSON LTD, 
East Lindsey District Council,http://statistics.data.gov.uk/id/local-authority/32UC,Policy & Project Manager,Buildings Maintenance - Responsive,23/08/12,IJ00013315,27.16,J TOMLINSON LTD, 
East Lindsey District Council,http://statistics.data.gov.uk/id/local-authority/32UC,Policy & Project Manager,Buildings Maintenance - Responsive,23/08/12,IJ00013315,376.15,J TOMLINSON LTD, 
East Lindsey District Council,http://statistics.data.gov.uk/id/local-authority/32UC,Building Control,Buildings Maintenance - Responsive,23/08/12,IJ00013315,162.19,J TOMLINSON LTD, 
East Lindsey District Council,http://statistics.data.gov.uk/id/local-authority/32UC,Service Development Manager,Buildings Maintenance - Responsive,23/08/12,IJ00013315,53.99,J TOMLINSON LTD, 
East Lindsey District Council,http://statistics.data.gov.uk/id/local-authority/32UC,Service Development Manager,Buildings Maintenance - Responsive,23/08/12,IJ00013315,37.62,J TOMLINSON LTD, 
East Lindsey District Council,http://statistics.data.gov.uk/id/local-authority/32UC,Service Development Manager,Buildings Maintenance - Responsive,23/08/12,IJ00013315,186.69,J TOMLINSON LTD, 
East Lindsey District Council,http://statistics.data.gov.uk/id/local-authority/32UC,Service Development Manager,Buildings Maintenance - Responsive,23/08/12,IJ00013315,20,J TOMLINSON LTD, 
East Lindsey District Council,http://statistics.data.gov.uk/id/local-authority/32UC,Service Development Manager,Buildings Maintenance - Responsive,23/08/12,IJ00013315,172.91,J TOMLINSON LTD, 
East Lindsey District Council,http://statistics.data.gov.uk/id/local-authority/32UC,Service Development Manager,Buildings Maintenance - Responsive,23/08/12,IJ00013315,20,J TOMLINSON LTD, 
East Lindsey District Council,http://statistics.data.gov.uk/id/local-authority/32UC,Service Development Manager,Buildings Maintenance - Responsive,23/08/12,IJ00013315,36.61,J TOMLINSON LTD, 
East Lindsey District Council,http://statistics.data.gov.uk/id/local-authority/32UC,Service Development Manager,Buildings Maintenance - Responsive,23/08/12,IJ00013315,36.61,J TOMLINSON LTD, 
East Lindsey District Council,http://statistics.data.gov.uk/id/local-authority/32UC,Service Development Manager,Buildings Maintenance - Responsive,23/08/12,IJ00013315,73.22,J TOMLINSON LTD, 
East Lindsey District Council,http://statistics.data.gov.uk/id/local-authority/32UC,Service Development Manager,Buildings Maintenance - Responsive,23/08/12,IJ00013315,113.78,J TOMLINSON LTD, 
East Lindsey District Council,http://statistics.data.gov.uk/id/local-authority/32UC,Horncastle Pool Manager,Buildings Maintenance - Responsive,23/08/12,IJ00013315,234.54,J TOMLINSON LTD, 
East Lindsey District Council,http://statistics.data.gov.uk/id/local-authority/32UC,Horncastle Pool Manager,Buildings Maintenance - Responsive,23/08/12,IJ00013315,20.9,J TOMLINSON LTD, 
East Lindsey District Council,http://statistics.data.gov.uk/id/local-authority/32UC,Horncastle Pool Manager,Buildings Maintenance - Responsive,23/08/12,IJ00013315,20.9,J TOMLINSON LTD, 
East Lindsey District Council,http://statistics.data.gov.uk/id/local-authority/32UC,Horncastle Pool Manager,Buildings Maintenance - Responsive,23/08/12,IJ00013315,121.5,J TOMLINSON LTD, 
East Lindsey District Council,http://statistics.data.gov.uk/id/local-authority/32UC,Horncastle Pool Manager,Buildings Maintenance - Responsive,23/08/12,IJ00013315,57.61,J TOMLINSON LTD, 
East Lindsey District Council,http://statistics.data.gov.uk/id/local-authority/32UC,Horncastle Pool Manager,Buildings Maintenance - Responsive,23/08/12,IJ00013315,94.14,J TOMLINSON LTD, 
East Lindsey District Council,http://statistics.data.gov.uk/id/local-authority/32UC,Horncastle Pool Manager,Buildings Maintenance - Responsive,23/08/12,IJ00013315,78.45,J TOMLINSON LTD, 
East Lindsey District Council,http://statistics.data.gov.uk/id/local-authority/32UC,Embassy Pool Manager,Buildings Maintenance - Responsive,23/08/12,IJ00013315,165.58,J TOMLINSON LTD, 
East Lindsey District Council,http://statistics.data.gov.uk/id/local-authority/32UC,Embassy Pool Manager,Buildings Maintenance - Responsive,23/08/12,IJ00013315,363.71,J TOMLINSON LTD, 
East Lindsey District Council,http://statistics.data.gov.uk/id/local-authority/32UC,Embassy Pool Manager,Buildings Maintenance - Responsive,23/08/12,IJ00013315,377.65,J TOMLINSON LTD, 
East Lindsey District Council,http://statistics.data.gov.uk/id/local-authority/32UC,Embassy Pool Manager,Buildings Maintenance - Responsive,23/08/12,IJ00013315,52.3,J TOMLINSON LTD, 
East Lindsey District Council,http://statistics.data.gov.uk/id/local-authority/32UC,Embassy Pool Manager,Buildings Maintenance - Responsive,23/08/12,IJ00013315,83.15,J TOMLINSON LTD, 
East Lindsey District Council,http://statistics.data.gov.uk/id/local-authority/32UC,Meridian Facility Manager,Buildings Maintenance - Responsive,23/08/12,IJ00013315,291.47,J TOMLINSON LTD, 
East Lindsey District Council,http://statistics.data.gov.uk/id/local-authority/32UC,Meridian Facility Manager,Buildings Maintenance - Responsive,23/08/12,IJ00013315,36.28,J TOMLINSON LTD, 
East Lindsey District Council,http://statistics.data.gov.uk/id/local-authority/32UC,TL Property,Buildings Maintenance - Responsive,23/08/12,IJ00013315,78.45,J TOMLINSON LTD, 
East Lindsey District Council,http://statistics.data.gov.uk/id/local-authority/32UC,Meridian Facility Manager,Buildings Maintenance - Responsive,23/08/12,IJ00013315,428.35,J TOMLINSON LTD, 
East Lindsey District Council,http://statistics.data.gov.uk/id/local-authority/32UC,Enforcement Team Leader,Buildings Maintenance - Responsive,23/08/12,IJ00013315,207.61,J TOMLINSON LTD, 
East Lindsey District Council,http://statistics.data.gov.uk/id/local-authority/32UC,Service Development Manager,Buildings Maintenance - Responsive,23/08/12,IJ00013315,295.33,J TOMLINSON LTD, 
East Lindsey District Council,http://statistics.data.gov.uk/id/local-authority/32UC,Service Development Manager,Buildings Maintenance - Responsive,23/08/12,IJ00013315,199.34,J TOMLINSON LTD, 
East Lindsey District Council,http://statistics.data.gov.uk/id/local-authority/32UC,Service Development Manager,Buildings Maintenance - Responsive,23/08/12,IJ00013315,31.38,J TOMLINSON LTD, 
East Lindsey District Council,http://statistics.data.gov.uk/id/local-authority/32UC,Service Development Manager,Buildings Maintenance - Responsive,23/08/12,IJ00013315,109.83,J TOMLINSON LTD, 
East Lindsey District Council,http://statistics.data.gov.uk/id/local-authority/32UC,Theatre Manager,Buildings Maintenance - Responsive,23/08/12,IJ00013315,85.44,J TOMLINSON LTD, 
East Lindsey District Council,http://statistics.data.gov.uk/id/local-authority/32UC,TL Property,Buildings Maintenance - Responsive,23/08/12,IJ00013315,92,J TOMLINSON LTD, 
East Lindsey District Council,http://statistics.data.gov.uk/id/local-authority/32UC,Service Development Manager,Buildings Maintenance - Responsive,23/08/12,IJ00013315,20.92,J TOMLINSON LTD, 
East Lindsey District Council,http://statistics.data.gov.uk/id/local-authority/32UC,Service Development Manager,Buildings Maintenance - Responsive,23/08/12,IJ00013315,41.84,J TOMLINSON LTD, 
East Lindsey District Council,http://statistics.data.gov.uk/id/local-authority/32UC,Service Development Manager,Buildings Maintenance - Responsive,23/08/12,IJ00013315,27.95,J TOMLINSON LTD, 
East Lindsey District Council,http://statistics.data.gov.uk/id/local-authority/32UC,Service Development Manager,Buildings Maintenance - Responsive,23/08/12,IJ00013315,48.28,J TOMLINSON LTD, 
East Lindsey District Council,http://statistics.data.gov.uk/id/local-authority/32UC,Service Development Manager,Buildings Maintenance - Responsive,23/08/12,IJ00013315,164.3,J TOMLINSON LTD, 
East Lindsey District Council,http://statistics.data.gov.uk/id/local-authority/32UC,Service Development Manager,Buildings Maintenance - Responsive,23/08/12,IJ00013315,31.38,J TOMLINSON LTD, 
East Lindsey District Council,http://statistics.data.gov.uk/id/local-authority/32UC,Service Development Manager,Buildings Maintenance - Responsive,23/08/12,IJ00013315,20.92,J TOMLINSON LTD, 
East Lindsey District Council,http://statistics.data.gov.uk/id/local-authority/32UC,Service Development Manager,Buildings Maintenance - Responsive,23/08/12,IJ00013315,85.9,J TOMLINSON LTD, 
East Lindsey District Council,http://statistics.data.gov.uk/id/local-authority/32UC,Service Development Manager,Buildings Maintenance - Responsive,23/08/12,IJ00013315,64.02,J TOMLINSON LTD, 
East Lindsey District Council,http://statistics.data.gov.uk/id/local-authority/32UC,Service Development Manager,Buildings Maintenance - Responsive,23/08/12,IJ00013315,45.42,J TOMLINSON LTD, 
East Lindsey District Council,http://statistics.data.gov.uk/id/local-authority/32UC,Service Development Manager,Buildings Maintenance - Responsive,23/08/12,IJ00013315,98.15,J TOMLINSON LTD, 
East Lindsey District Council,http://statistics.data.gov.uk/id/local-authority/32UC,Service Development Manager,Buildings Maintenance - Responsive,23/08/12,IJ00013315,26.15,J TOMLINSON LTD, 
East Lindsey District Council,http://statistics.data.gov.uk/id/local-authority/32UC,Service Development Manager,Buildings Maintenance - Responsive,23/08/12,IJ00013315,71.23,J TOMLINSON LTD, 
East Lindsey District Council,http://statistics.data.gov.uk/id/local-authority/32UC,Service Development Manager,Buildings Maintenance - Responsive,23/08/12,IJ00013315,20,J TOMLINSON LTD, 
East Lindsey District Council,http://statistics.data.gov.uk/id/local-authority/32UC,TL Property,Buildings Maintenance - Programmed,23/08/12,IJ00013315,1108.25,J TOMLINSON LTD, 
East Lindsey District Council,http://statistics.data.gov.uk/id/local-authority/32UC,TL Property,Buildings Maintenance - Responsive,23/08/12,IJ00013315,135.12,J TOMLINSON LTD, 
East Lindsey District Council,http://statistics.data.gov.uk/id/local-authority/32UC,Enforcement Team Leader,Buildings Maintenance - Responsive,23/08/12,IJ00013315,162.13,J TOMLINSON LTD, 
East Lindsey District Council,http://statistics.data.gov.uk/id/local-authority/32UC,Theatre Manager,Buildings Maintenance - Responsive,23/08/12,IJ00013315,57.17,J TOMLINSON LTD, 
East Lindsey District Council,http://statistics.data.gov.uk/id/local-authority/32UC,Theatre Manager,Buildings Maintenance - Responsive,23/08/12,IJ00013315,67.99,J TOMLINSON LTD, 
East Lindsey District Council,http://statistics.data.gov.uk/id/local-authority/32UC,Theatre Manager,Buildings Maintenance - Responsive,23/08/12,IJ00013315,62.76,J TOMLINSON LTD, 
East Lindsey District Council,http://statistics.data.gov.uk/id/local-authority/32UC,TL Property,Buildings Maintenance - Responsive,23/08/12,IJ00013315,92.47,J TOMLINSON LTD, 
East Lindsey District Council,http://statistics.data.gov.uk/id/local-authority/32UC,Business Development Manager,Buildings Maintenance - Responsive,23/08/12,IJ00013315,36.61,J TOMLINSON LTD, 
East Lindsey District Council,http://statistics.data.gov.uk/id/local-authority/32UC,Enforcement Team Leader,Buildings Maintenance - Responsive,23/08/12,IJ00013315,36.61,J TOMLINSON LTD, 
East Lindsey District Council,http://statistics.data.gov.uk/id/local-authority/32UC,Enforcement Team Leader,Buildings Maintenance - Responsive,23/08/12,IJ00013315,36.61,J TOMLINSON LTD, 
East Lindsey District Council,http://statistics.data.gov.uk/id/local-authority/32UC,TL Property,Buildings Maintenance - Responsive,23/08/12,IJ00013315,124.48,J TOMLINSON LTD, 
East Lindsey District Council,http://statistics.data.gov.uk/id/local-authority/32UC,TL Property,Buildings Maintenance - Responsive,23/08/12,IJ00013315,31.38,J TOMLINSON LTD, 
East Lindsey District Council,http://statistics.data.gov.uk/id/local-authority/32UC,TL Property,Buildings Maintenance - Responsive,23/08/12,IJ00013315,199.31,J TOMLINSON LTD, 
East Lindsey District Council,http://statistics.data.gov.uk/id/local-authority/32UC,TL Property,Buildings Maintenance - Responsive,23/08/12,IJ00013315,65.05,J TOMLINSON LTD, 
East Lindsey District Council,http://statistics.data.gov.uk/id/local-authority/32UC,TL Property,Buildings Maintenance - Responsive,23/08/12,IJ00013315,73.22,J TOMLINSON LTD, 
East Lindsey District Council,http://statistics.data.gov.uk/id/local-authority/32UC,Theatre Manager,Buildings Maintenance - Responsive,23/08/12,IJ00013315,164.3,J TOMLINSON LTD, 
East Lindsey District Council,http://statistics.data.gov.uk/id/local-authority/32UC,Service Development Manager,Buildings Maintenance - Responsive,23/08/12,IJ00013315,80.96,J TOMLINSON LTD, 
East Lindsey District Council,http://statistics.data.gov.uk/id/local-authority/32UC,Service Development Manager,Buildings Maintenance - Responsive,23/08/12,IJ00013315,104.73,J TOMLINSON LTD, 
East Lindsey District Council,http://statistics.data.gov.uk/id/local-authority/32UC,Service Development Manager,Buildings Maintenance - Responsive,23/08/12,IJ00013315,131.18,J TOMLINSON LTD, 
East Lindsey District Council,http://statistics.data.gov.uk/id/local-authority/32UC,Service Development Manager,Buildings Maintenance - Responsive,23/08/12,IJ00013315,192.36,J TOMLINSON LTD, 
East Lindsey District Council,http://statistics.data.gov.uk/id/local-authority/32UC,Enforcement Team Leader,Buildings Maintenance - Responsive,23/08/12,IJ00013315,141.21,J TOMLINSON LTD, 
East Lindsey District Council,http://statistics.data.gov.uk/id/local-authority/32UC,Technical Services Team Leader,Furniture and Equipment,23/08/12,IJ00013315,57.53,J TOMLINSON LTD, 
East Lindsey District Council,http://statistics.data.gov.uk/id/local-authority/32UC,Service Development Manager,Buildings Maintenance - Responsive,23/08/12,IJ00013315,117.54,J TOMLINSON LTD, 
East Lindsey District Council,http://statistics.data.gov.uk/id/local-authority/32UC,TL Property,Buildings Maintenance - Responsive,23/08/12,IJ00013315,110.01,J TOMLINSON LTD, 
East Lindsey District Council,http://statistics.data.gov.uk/id/local-authority/32UC,Embassy Pool Manager,Buildings Maintenance - Responsive,23/08/12,IJ00013315,83.68,J TOMLINSON LTD, 
East Lindsey District Council,http://statistics.data.gov.uk/id/local-authority/32UC,TL Property,Buildings Maintenance - Responsive,23/08/12,IJ00013315,471.44,J TOMLINSON LTD, 
East Lindsey District Council,http://statistics.data.gov.uk/id/local-authority/32UC,Enforcement Team Leader,Buildings Maintenance - Responsive,23/08/12,IJ00013315,410.49,J TOMLINSON LTD, 
East Lindsey District Council,http://statistics.data.gov.uk/id/local-authority/32UC,Enforcement Team Leader,Buildings Maintenance - Responsive,23/08/12,IJ00013315,106.9,J TOMLINSON LTD, 
East Lindsey District Council,http://statistics.data.gov.uk/id/local-authority/32UC,Enforcement Team Leader,Buildings Maintenance - Responsive,23/08/12,IJ00013315,56.05,J TOMLINSON LTD, 
East Lindsey District Council,http://statistics.data.gov.uk/id/local-authority/32UC,Meridian Facility Manager,Buildings Maintenance - Responsive,23/08/12,IJ00013315,83.1,J TOMLINSON LTD, 
East Lindsey District Council,http://statistics.data.gov.uk/id/local-authority/32UC,Service Development Manager,Buildings Maintenance - Responsive,23/08/12,IJ00013315,88.88,J TOMLINSON LTD, 
East Lindsey District Council,http://statistics.data.gov.uk/id/local-authority/32UC,Service Development Manager,Buildings Maintenance - Responsive,23/08/12,IJ00013315,57.53,J TOMLINSON LTD, 
East Lindsey District Council,http://statistics.data.gov.uk/id/local-authority/32UC,Enforcement Team Leader,Buildings Maintenance - Responsive,23/08/12,IJ00013315,985.82,J TOMLINSON LTD, 
East Lindsey District Council,http://statistics.data.gov.uk/id/local-authority/32UC,Enforcement Team Leader,Buildings Maintenance - Responsive,23/08/12,IJ00013315,158.24,J TOMLINSON LTD, 
East Lindsey District Council,http://statistics.data.gov.uk/id/local-authority/32UC,Enforcement Team Leader,Buildings Maintenance - Responsive,23/08/12,IJ00013315,665.05,J TOMLINSON LTD, 
East Lindsey District Council,http://statistics.data.gov.uk/id/local-authority/32UC,TL Property,Buildings Maintenance - Responsive,23/08/12,IJ00013315,299.5,J TOMLINSON LTD, 
East Lindsey District Council,http://statistics.data.gov.uk/id/local-authority/32UC,TL Property,Buildings Maintenance - Responsive,23/08/12,IJ00013315,112.78,J TOMLINSON LTD, 
East Lindsey District Council,http://statistics.data.gov.uk/id/local-authority/32UC,Theatre Manager,Buildings Maintenance - Responsive,23/08/12,IJ00013315,77.77,J TOMLINSON LTD, 
East Lindsey District Council,http://statistics.data.gov.uk/id/local-authority/32UC,Service Development Manager,Buildings Maintenance - Responsive,23/08/12,IJ00013315,377.33,J TOMLINSON LTD, 
East Lindsey District Council,http://statistics.data.gov.uk/id/local-authority/32UC,Enforcement Team Leader,Buildings Maintenance - Responsive,23/08/12,IJ00013315,124.24,J TOMLINSON LTD, 
East Lindsey District Council,http://statistics.data.gov.uk/id/local-authority/32UC,TL Property,Buildings Maintenance - Responsive,23/08/12,IJ00013315,167.97,J TOMLINSON LTD, 
East Lindsey District Council,http://statistics.data.gov.uk/id/local-authority/32UC,Democracy Manager,External Printing and Design Costs,23/08/12,IJ00013179,3453.32,DEMOCRACY COUNTS LIMITED, 
East Lindsey District Council,http://statistics.data.gov.uk/id/local-authority/32UC,Democracy Manager,External Printing and Design Costs,23/08/12,IJ00013180,4779.75,DEMOCRACY COUNTS LIMITED, 
East Lindsey District Council,http://statistics.data.gov.uk/id/local-authority/32UC,TL IT - System Support,Computer Software Licence Costs,23/08/12,IJ00013212,6500,192BUSINESS LTD, 
East Lindsey District Council,http://statistics.data.gov.uk/id/local-authority/32UC,Enforcement Team Leader,Commercial Vehicle Lease,23/08/12,IJ00013169,1221.89,GREAT COATES MOTORS LTD, 
East Lindsey District Council,http://statistics.data.gov.uk/id/local-authority/32UC,Enforcement Team Leader,Commercial Vehicle Lease,23/08/12,IJ00013170,1125.09,GREAT COATES MOTORS LTD, 
East Lindsey District Council,http://statistics.data.gov.uk/id/local-authority/32UC,Service Development Manager,Commercial Vehicle Lease,23/08/12,IJ00013238,3043.12,GREAT COATES MOTORS LTD, 
East Lindsey District Council,http://statistics.data.gov.uk/id/local-authority/32UC,Service Development Manager,Commercial Vehicle Lease,23/08/12,IJ00013239,3555.86,GREAT COATES MOTORS LTD, 
East Lindsey District Council,http://statistics.data.gov.uk/id/local-authority/32UC,Service Development Manager,Commercial Vehicle Lease,23/08/12,IJ00013240,3234.83,GREAT COATES MOTORS LTD, 
East Lindsey District Council,http://statistics.data.gov.uk/id/local-authority/32UC,Enforcement Team Leader,Commercial Vehicle Lease,23/08/12,IJ00013241,1231.05,GREAT COATES MOTORS LTD, 
East Lindsey District Council,http://statistics.data.gov.uk/id/local-authority/32UC,Technical Services Team Leader,Buildings Maintenance - Programmed,23/08/12,IJ00013374,1500,SKIPTON BUSINESS FINANCE LTD, 
East Lindsey District Council,http://statistics.data.gov.uk/id/local-authority/32UC,Technical Services Team Leader,Buildings Maintenance - Programmed,23/08/12,IJ00013374,1200,SKIPTON BUSINESS FINANCE LTD, 
East Lindsey District Council,http://statistics.data.gov.uk/id/local-authority/32UC,Planning & Housing Policy Manager,Other Miscellaneous Expenses,23/08/12,IJ00013168,2200,OPUN, 
East Lindsey District Council,http://statistics.data.gov.uk/id/local-authority/32UC,Sports Development,Other agencies,23/08/12,IJ00013292,638.61,TRI SLACKLINING LTD, 
East Lindsey District Council,http://statistics.data.gov.uk/id/local-authority/32UC,Sports Development,Other agencies,23/08/12,IJ00013293,928.32,TRI SLACKLINING LTD, 
East Lindsey District Council,http://statistics.data.gov.uk/id/local-authority/32UC,Sports Development,Other agencies,23/08/12,IJ00013294,638.61,TRI SLACKLINING LTD, 
East Lindsey District Council,http://statistics.data.gov.uk/id/local-authority/32UC,Enforcement Team Leader,Fuel & Oil,23/08/12,IJ00013166,422.65,THE RIGHT FUELCARD COMPANY LTD, 
East Lindsey District Council,http://statistics.data.gov.uk/id/local-authority/32UC,Sports Development,Fuel & Oil,23/08/12,IJ00013166,134.11,THE RIGHT FUELCARD COMPANY LTD, 
East Lindsey District Council,http://statistics.data.gov.uk/id/local-authority/32UC,Enforcement Team Leader,Fuel & Oil,23/08/12,IJ00013166,691.77,THE RIGHT FUELCARD COMPANY LTD, 
East Lindsey District Council,http://statistics.data.gov.uk/id/local-authority/32UC,Hsg Advice & Homelessness TL,Fuel & Oil,23/08/12,IJ00013166,148.94,THE RIGHT FUELCARD COMPANY LTD, 
East Lindsey District Council,http://statistics.data.gov.uk/id/local-authority/32UC,Technical Services Team Leader,Fuel & Oil,23/08/12,IJ00013166,179.77,THE RIGHT FUELCARD COMPANY LTD, 
East Lindsey District Council,http://statistics.data.gov.uk/id/local-authority/32UC,Technical Services Team Leader,Fuel & Oil,23/08/12,IJ00013166,190.28,THE RIGHT FUELCARD COMPANY LTD, 
East Lindsey District Council,http://statistics.data.gov.uk/id/local-authority/32UC,Waste Services Manager,Fuel & Oil,23/08/12,IJ00013166,167.87,THE RIGHT FUELCARD COMPANY LTD, 
East Lindsey District Council,http://statistics.data.gov.uk/id/local-authority/32UC,Waste Services Manager,Fuel & Oil,23/08/12,IJ00013166,33.8,THE RIGHT FUELCARD COMPANY LTD, 
East Lindsey District Council,http://statistics.data.gov.uk/id/local-authority/32UC,Theatre Manager,Fuel & Oil,23/08/12,IJ00013166,173.57,THE RIGHT FUELCARD COMPANY LTD, 
East Lindsey District Council,http://statistics.data.gov.uk/id/local-authority/32UC,Improvement & Development Mngr,Fuel & Oil,23/08/12,IJ00013166,2283.49,THE RIGHT FUELCARD COMPANY LTD, 
East Lindsey District Council,http://statistics.data.gov.uk/id/local-authority/32UC,Improvement & Development Mngr,Fuel & Oil,23/08/12,IJ00013166,351.24,THE RIGHT FUELCARD COMPANY LTD, 
East Lindsey District Council,http://statistics.data.gov.uk/id/local-authority/32UC,Improvement & Development Mngr,Fuel & Oil,23/08/12,IJ00013166,1986.12,THE RIGHT FUELCARD COMPANY LTD, 
East Lindsey District Council,http://statistics.data.gov.uk/id/local-authority/32UC,Improvement & Development Mngr,Fuel & Oil,23/08/12,IJ00013166,27.15,THE RIGHT FUELCARD COMPANY LTD, 
East Lindsey District Council,http://statistics.data.gov.uk/id/local-authority/32UC,Improvement & Development Mngr,Fuel & Oil,23/08/12,IJ00013166,798.86,THE RIGHT FUELCARD COMPANY LTD, 
East Lindsey District Council,http://statistics.data.gov.uk/id/local-authority/32UC,Improvement & Development Mngr,Fuel & Oil,23/08/12,IJ00013166,3676.19,THE RIGHT FUELCARD COMPANY LTD, 
East Lindsey District Council,http://statistics.data.gov.uk/id/local-authority/32UC,Area Working,Fuel & Oil,23/08/12,IJ00013166,39.26,THE RIGHT FUELCARD COMPANY LTD, 
East Lindsey District Council,http://statistics.data.gov.uk/id/local-authority/32UC,Area Working,Fuel & Oil,23/08/12,IJ00013166,85.77,THE RIGHT FUELCARD COMPANY LTD, 
East Lindsey District Council,http://statistics.data.gov.uk/id/local-authority/32UC,TL Partnerships & Grants,Other agencies,23/08/12,IJ00013154,8333.33,LINCOLNSHIRE CVS, 
East Lindsey District Council,http://statistics.data.gov.uk/id/local-authority/32UC,Waste Services Manager,Fuel & Oil,23/08/12,IJ00013165,28123.07,EMO OIL LIMITED, 
East Lindsey District Council,http://statistics.data.gov.uk/id/local-authority/32UC,Service Development Manager,Buildings Maintenance - Programmed,23/08/12,IJ00013269,3033.92,CITY ELECTRICAL FACTORS LTD, 
East Lindsey District Council,http://statistics.data.gov.uk/id/local-authority/32UC,Commercial Team Leader,Other Private Contractors,23/08/12,IJ00013226,1362,F E ADDLESEE AND SON, 
East Lindsey District Council,http://statistics.data.gov.uk/id/local-authority/32UC,Theatre Manager,Performers and Entertainers Fees,23/08/12,IJ00013334,3553.81,TALENTED ARTISTS LTD, 
East Lindsey District Council,http://statistics.data.gov.uk/id/local-authority/32UC,Theatre Manager,Performers and Entertainers Fees,23/08/12,IJ00013334,-210,TALENTED ARTISTS LTD, 
East Lindsey District Council,http://statistics.data.gov.uk/id/local-authority/32UC,Theatre Manager,Performers and Entertainers Fees,23/08/12,IJ00013338,4289.87,TALENTED ARTISTS LTD, 
East Lindsey District Council,http://statistics.data.gov.uk/id/local-authority/32UC,Theatre Manager,Performers and Entertainers Fees,23/08/12,IJ00013338,-210,TALENTED ARTISTS LTD, 
East Lindsey District Council,http://statistics.data.gov.uk/id/local-authority/32UC,Service Development Manager,Buildings Maintenance - Responsive,30/08/12,IJ00013473,758.48,ALLDREAD MAINTENANCE SERVICES, 
East Lindsey District Council,http://statistics.data.gov.uk/id/local-authority/32UC,TL Property,Professional & Contractors Fees,30/08/12,IJ00013423,1457.75,GRS ELECTRICAL SERVICES LTD, 
East Lindsey District Council,http://statistics.data.gov.uk/id/local-authority/32UC,TL Property,Professional & Contractors Fees,30/08/12,IJ00013423,78.4,GRS ELECTRICAL SERVICES LTD, 
East Lindsey District Council,http://statistics.data.gov.uk/id/local-authority/32UC,Embassy Pool Manager,Materials and Consumables,30/08/12,IJ00013424,1148.98,STOWLIN LTD, 
East Lindsey District Council,http://statistics.data.gov.uk/id/local-authority/32UC,Service Development Manager,Materials and Consumables,30/08/12,IJ00013477,544.47,STOWLIN LTD, 
East Lindsey District Council,http://statistics.data.gov.uk/id/local-authority/32UC,Service Development Manager,Materials and Consumables,30/08/12,IJ00013477,272.23,STOWLIN LTD, 
East Lindsey District Council,http://statistics.data.gov.uk/id/local-authority/32UC,Service Development Manager,Materials and Consumables,30/08/12,IJ00013478,848.7,STOWLIN LTD, 
East Lindsey District Council,http://statistics.data.gov.uk/id/local-authority/32UC,Theatre Manager,Performers and Entertainers Fees,30/08/12,IJ00013568,2649.86,JANICE SUTTON, 
East Lindsey District Council,http://statistics.data.gov.uk/id/local-authority/32UC,TL Property,Professional & Contractors Fees,30/08/12,IJ00013419,500,TURNER EVANS STEVENS, 
East Lindsey District Council,http://statistics.data.gov.uk/id/local-authority/32UC,Theatre Manager,Performers and Entertainers Fees,30/08/12,IJ00013566,5000,ETM LIMITED, 
East Lindsey District Council,http://statistics.data.gov.uk/id/local-authority/32UC,Horncastle Pool Manager,Other Miscellaneous Expenses,30/08/12,IJ00013517,661.94,VENDING ENTERPRISES, 
East Lindsey District Council,http://statistics.data.gov.uk/id/local-authority/32UC,Hsg Advice & Homelessness TL,Furniture and Equipment,30/08/12,IJ00013488,2583.33,WORLD OF FURNISHINGS LIMITED, 
East Lindsey District Council,http://statistics.data.gov.uk/id/local-authority/32UC,Shared Legal Services,Lincolnshire Legal Services,30/08/12,IJ00013531,25272.68,LINCOLNSHIRE COUNTY COUNCIL, 
East Lindsey District Council,http://statistics.data.gov.uk/id/local-authority/32UC,Shared Legal Services,Lincolnshire Legal Services,30/08/12,IJ00013531,2618.04,LINCOLNSHIRE COUNTY COUNCIL, 
East Lindsey District Council,http://statistics.data.gov.uk/id/local-authority/32UC,TL Property,Buildings Maintenance - Responsive,30/08/12,IJ00013468,1783.23,SEYMOUR & CASTLE LTD, 
East Lindsey District Council,http://statistics.data.gov.uk/id/local-authority/32UC,Meridian Facility Manager,Materials and Consumables,30/08/12,IJ00013394,5900,RIGBY TAYLOR LIMITED, 
East Lindsey District Council,http://statistics.data.gov.uk/id/local-authority/32UC,Service Development Manager,Materials and Consumables,30/08/12,IJ00013569,1455,OVERTON UK LTD, 
East Lindsey District Council,http://statistics.data.gov.uk/id/local-authority/32UC,Council Tax TL,VAT Customs and Excise,30/08/12,IJ00013386,547.21,JACOBS, 
East Lindsey District Council,http://statistics.data.gov.uk/id/local-authority/32UC,TL Property,Grants and Contributions to Outside Bodies- No Service Recei,30/08/12,IJ00013560,8647.62,BLUEPRINT LIMITED, 
East Lindsey District Council,http://statistics.data.gov.uk/id/local-authority/32UC,Capital WIP,Works to Buildings (main Contractor),30/08/12,IJ00013509,862.5,AJET DRAIN SERVICES, 
East Lindsey District Council,http://statistics.data.gov.uk/id/local-authority/32UC,Capital WIP,Works to Buildings (Sub Contractors),30/08/12,IJ00013435,1009,REFLECTIONS WINDOWS LTD, 
East Lindsey District Council,http://statistics.data.gov.uk/id/local-authority/32UC,Meridian Facility Manager,Other Miscellaneous Expenses,30/08/12,IJ00013376,1335.73,DEE BEE, 
East Lindsey District Council,http://statistics.data.gov.uk/id/local-authority/32UC,TL IT - System Support,Computer Software Licence Costs,30/08/12,IJ00013521,9957.36,TRUSTMARQUE SOLUTIONS LTD, 
East Lindsey District Council,http://statistics.data.gov.uk/id/local-authority/32UC,Capital WIP,Grants and Contributions to Outside Bodies- No Service Recei,30/08/12,IJ00013458,500,OBAM STAIRLIFTS, 
East Lindsey District Council,http://statistics.data.gov.uk/id/local-authority/32UC,Capital WIP,Grants and Contributions to Outside Bodies- No Service Recei,30/08/12,IJ00013561,6324,CRACROFT VILLAGE HALL, 
East Lindsey District Council,http://statistics.data.gov.uk/id/local-authority/32UC,Theatre Manager,Performers and Entertainers Fees,30/08/12,IJ00013391,1500,ORIGINAL ENTERTAINMENT PROGRAMMING LTD, 
East Lindsey District Council,http://statistics.data.gov.uk/id/local-authority/32UC,Theatre Manager,Performers and Entertainers Fees,30/08/12,IJ00013392,3498.16,ORIGINAL ENTERTAINMENT PROGRAMMING LTD, 
East Lindsey District Council,http://statistics.data.gov.uk/id/local-authority/32UC,Theatre Manager,Performers and Entertainers Fees,30/08/12,IJ00013392,-279.33,ORIGINAL ENTERTAINMENT PROGRAMMING LTD, 
East Lindsey District Council,http://statistics.data.gov.uk/id/local-authority/32UC,Waste Services Manager,Agency Staff,30/08/12,IJ00013486,5110.14,CLOSE INVOICE FINANCE LTD, 
East Lindsey District Council,http://statistics.data.gov.uk/id/local-authority/32UC,Capital WIP,Grants and Contributions to Outside Bodies- No Service Recei,30/08/12,IJ00013459,3862.83,HUMBERSTONE BUILDING MAINTENANCE, 
East Lindsey District Council,http://statistics.data.gov.uk/id/local-authority/32UC,Hsg Private Sector TL,Other Income,30/08/12,IJ00013459,-344.9,HUMBERSTONE BUILDING MAINTENANCE, 
East Lindsey District Council,http://statistics.data.gov.uk/id/local-authority/32UC,Embassy Pool Manager,Buildings Maintenance - Programmed,30/08/12,IJ00013481,613.38,SIEMENS PLC, 
East Lindsey District Council,http://statistics.data.gov.uk/id/local-authority/32UC,Capital WIP,Grants and Contributions to Outside Bodies- No Service Recei,30/08/12,IJ00013462,3979.9,ANDREW BLADES BUILDING SERVICES LTD, 
East Lindsey District Council,http://statistics.data.gov.uk/id/local-authority/32UC,TL IT - Infrastructure,Other Miscellaneous Expenses,30/08/12,IJ00013516,5000,ADAM CONTINUITY LTD, 
East Lindsey District Council,http://statistics.data.gov.uk/id/local-authority/32UC,Technical Services Team Leader,Buildings Maintenance - Programmed,30/08/12,IJ00013479,2889,SOUNDSTAGE ONE EVENT SERVICES LIMITED, 
East Lindsey District Council,http://statistics.data.gov.uk/id/local-authority/32UC,SM Economic Regen & Property,Professional & Contractors Fees,30/08/12,IJ00013393,989,VALUATION OFFICE AGENCY, 
East Lindsey District Council,http://statistics.data.gov.uk/id/local-authority/32UC,Hsg Advice & Homelessness TL,Bed and Breakfast Accommodation (Homelessness Service),30/08/12,IJ00013373,3278,THE BRACKENHURST GUESTHOUSE, 
East Lindsey District Council,http://statistics.data.gov.uk/id/local-authority/32UC,Council Tax TL,Court Costs,30/08/12,IJ00013541,1098,CENTRAL FINANCE UNIT, 
East Lindsey District Council,http://statistics.data.gov.uk/id/local-authority/32UC,Debt Recovery TL,Court Costs,30/08/12,IJ00013541,144,CENTRAL FINANCE UNIT, 
East Lindsey District Council,http://statistics.data.gov.uk/id/local-authority/32UC,Corporate Accounting,Other Income,30/08/12,IJ00013493,2670,COMPASS POINT BUSINESS SERVICES, 
East Lindsey District Council,http://statistics.data.gov.uk/id/local-authority/32UC,Theatre Manager,Performers and Entertainers Fees,30/08/12,IJ00013567,4633.74,QDOS ENTERTAINMENT (PRODUCTIONS) LTD, 
East Lindsey District Council,http://statistics.data.gov.uk/id/local-authority/32UC,Capital WIP,Grants and Contributions to Outside Bodies- No Service Recei,30/08/12,IJ00013460,4403.08,HARRIS BUILDING SERVICES, 
East Lindsey District Council,http://statistics.data.gov.uk/id/local-authority/32UC,Hsg Private Sector TL,Other Income,30/08/12,IJ00013460,-393.13,HARRIS BUILDING SERVICES, 
East Lindsey District Council,http://statistics.data.gov.uk/id/local-authority/32UC,TL IT - Infrastructure,Computer Hardware Maintenance,30/08/12,IJ00013524,2058,COMPLETE SOURCE LTD, 
East Lindsey District Council,http://statistics.data.gov.uk/id/local-authority/32UC,Theatre Manager,Performers and Entertainers Fees,30/08/12,IJ00013390,3890.48,DEREK BLOCK CONCERT PROMOTIONS LTD, 
East Lindsey District Council,http://statistics.data.gov.uk/id/local-authority/32UC,Theatre Manager,Performers and Entertainers Fees,30/08/12,IJ00013390,-175,DEREK BLOCK CONCERT PROMOTIONS LTD, 
East Lindsey District Council,http://statistics.data.gov.uk/id/local-authority/32UC,TL Property,Buildings Maintenance - Programmed,30/08/12,IJ00013463,880,SAFE & SOUND SECURITY SYSTEMS LINKS LTD, 
East Lindsey District Council,http://statistics.data.gov.uk/id/local-authority/32UC,Service Development Manager,Water and Sewerage Charges,30/08/12,IJ00013451,843.4,ANGLIAN WATER, 
East Lindsey District Council,http://statistics.data.gov.uk/id/local-authority/32UC,Horncastle Pool Manager,Water and Sewerage Charges,30/08/12,IJ00013452,3879.57,ANGLIAN WATER, 
East Lindsey District Council,http://statistics.data.gov.uk/id/local-authority/32UC,Meridian Facility Manager,Water and Sewerage Charges,30/08/12,IJ00013453,848.01,ANGLIAN WATER, 
East Lindsey District Council,http://statistics.data.gov.uk/id/local-authority/32UC,Service Development Manager,Water and Sewerage Charges,30/08/12,IJ00013454,1312.44,ANGLIAN WATER, 
East Lindsey District Council,http://statistics.data.gov.uk/id/local-authority/32UC,Improvement & Development Mngr,Clothing Uniforms And Laundry,30/08/12,IJ00013555,633.6,SAFETY MANAGEMENT INT GROUP, 
East Lindsey District Council,http://statistics.data.gov.uk/id/local-authority/32UC,Technical Services Team Leader,Voluntary associations,30/08/12,IJ00013564,532,LIVES SKEGNESS, 
East Lindsey District Council,http://statistics.data.gov.uk/id/local-authority/32UC,Cultural & Related Services,Staff Recruitment,30/08/12,IJ00013565,1100,NICKI JARVIS, 
East Lindsey District Council,http://statistics.data.gov.uk/id/local-authority/32UC,Waste Services Manager,Maintenance,30/08/12,IJ00013406,700,MAY GURNEY FLEET & PASSENGER SERVICES LTD, 
East Lindsey District Council,http://statistics.data.gov.uk/id/local-authority/32UC,Service Development Manager,Maintenance,30/08/12,IJ00013407,1064,MAY GURNEY FLEET & PASSENGER SERVICES LTD, 
East Lindsey District Council,http://statistics.data.gov.uk/id/local-authority/32UC,Environment Team Leader,Other Private Contractors,30/08/12,IJ00013455,650,THE ENVIRONMENTAL PROTECTION GROUP LTD, 
East Lindsey District Council,http://statistics.data.gov.uk/id/local-authority/32UC,Capital WIP,Grants and Contributions to Outside Bodies- No Service Recei,30/08/12,IJ00013461,4075.32,ANDREW WRISDALE BUILDING CONTRACTOR, 
East Lindsey District Council,http://statistics.data.gov.uk/id/local-authority/32UC,Hsg Private Sector TL,Other Income,30/08/12,IJ00013461,-363.87,ANDREW WRISDALE BUILDING CONTRACTOR, 
East Lindsey District Council,http://statistics.data.gov.uk/id/local-authority/32UC,TL IT - Network & Comms,Computer Hardware Purchase,30/08/12,IJ00013522,1448.99,1SOURCEIT LIMITED, 
East Lindsey District Council,http://statistics.data.gov.uk/id/local-authority/32UC,Democracy Manager,Grants and Contributions to Outside Bodies- No Service Recei,30/08/12,IJ00013511,500,HORNCASTLE YCMC COMMUNIITY SUPPORT, 
